Workbook

Sheet Orçamento
O3: UNIDADE ESCOLAR | V3: CÓDIGO INEP
O4: CENTRO DE ENSINO EM PERÍODO INTEGRAL PROFESSOR JOAQUIM CARVALHO FERREIRA | V4: 52033589
A6: Nmax | M6: Ajustar altura? | O6: OBRA | S6: DATA | V6: CIDADE
A7: =MAX($C$18:$C$742) -> 4 | M7: SIM | O7: REFORMA E AMPLIAÇÃO | S7: 2020-03-25 | V7: GOIÂNIA
O9: CRE | R9: ENDEREÇO | S9: REFERÊNCIA AGETOP | V9: REFERÊNCIA SINAPI
O10: GOIÂNIA | R10: AV FERNÃO DIAS PAES LEME S/Nº 32, CAPUAVA, CEP:74450-200 | S10: ABR/19 | T10: DESONERADA | V10: OUT/19 | W10: DESONERADA
O12: ÁREA EXISTENTE (M²) | R12: ÁREA A CONSTRUIR (M²) | S12: ÁREA A DEMOLIR (M²) | V12: ÁREA TOTAL CONSTRUÍDA (M²)
O13: 2809.72 | R13: 159.91 | S13: 0 | V13: 2969.63
L15: FILTRO | O15: PLANILHA ORÇAMENTÁRIA
A16: Nível E | B16: Save Nivel | C16: Nível C | D16: Altura | E16: n1 | F16: n2 | G16: n3 | H16: n4 | I16: n5 | J16: Czero | K16: Cnível | L16: ↓ | M16: Nível | N16: Nível Corrigido | O16: ITEM | P16: TABELA | Q16: CODIGO | R16: DESCRIÇÃO DOS SERVIÇOS | S16: UNID | T16: QUANT | U16: MAT | V16: MO | W16: T.SERVIÇO | X16: OBSERVAÇÕES¹
A17: =CHOOSE(1+LOG(1+2*(ORÇAMENTO.Nivel="Nível 1")+4*(ORÇAMENTO.Nivel="Nível 2")+8*(ORÇAMENTO.Nivel="Nível 3")+16*(ORÇAMENTO.Nivel="Nível 4")+32*(ORÇAMENTO.Nivel="Serviço"),2),0,1,2,3,4,"S") -> S | B17: =IF(OR(C17="s",C17=0),OFFSET(B17,-1,0),C17) -> Save Nivel | C17: =IF(OFFSET(C17,-1,0)="L",1,IF(OFFSET(C17,-1,0)=1,2,IF(OR(A17="s",A17=0),"S",IF(AND(OFFSET(C17,-1,0)=2,A17=4),3,IF(AND(OR(OFFSET(C17,-1,0)="s",OFFSET(C17,-1,0)=0),A17<>"s",A17>OFFSET(B17,-1,0)),OFFSET(B17,-1,0),A17))))) -> S | D17: =IF(OR(C17="S",C17=0),0,IF(ISERROR(K17),J17,SMALL(J17:K17,1))) -> 0 | E17: =IF($C17=1,OFFSET(E17,-1,0)+1,OFFSET(E17,-1,0)) -> n1 | F17: =IF($C17=1,0,IF($C17=2,OFFSET(F17,-1,0)+1,OFFSET(F17,-1,0))) -> n2 | G17: =IF(AND($C17<=2,$C17<>0),0,IF($C17=3,OFFSET(G17,-1,0)+1,OFFSET(G17,-1,0))) -> n3 | H17: =IF(AND($C17<=3,$C17<>0),0,IF($C17=4,OFFSET(H17,-1,0)+1,OFFSET(H17,-1,0))) -> n4 | I17: =IF(AND($C17<=4,$C17<>0),0,IF(AND($C17="S",$W17>0),OFFSET(I17,-1,0)+1,OFFSET(I17,-1,0))) -> n5 | J17: =IF(OR($C17="S",$C17=0),0,MATCH(0,OFFSET($D17,1,$C17,ROW($C$742)-ROW($C17)),0)) -> 0 | K17: =IF(OR($C17="S",$C17=0),0,MATCH(OFFSET($D17,0,$C17)+1,OFFSET($D17,1,$C17,ROW($C$742)-ROW($C17)),0)) -> 0 | M17: Serviço | N17: Serviço | O17: - | P17: SINAPI | R17: (sem código) | S17: - | U17: 0 | V17: 0 | W17: 0
A18: 0 | C18: L | D18: =COUNTA(OFFSET(D18,1,0):D$742) -> 723 | E18: =LEFT(O19,1)-1 -> 0 | L18: F | M18: LOTE | N18: LOTE | O18: REFORMA E AMPLIAÇÃO - CENTRO DE ENSINO EM PERÍODO INTEGRAL PROFESSOR JOAQUIM CARVALHO FERREIRA | W18: 718005.83
A19: =CHOOSE(1+LOG(1+2*(ORÇAMENTO.Nivel="Nível 1")+4*(ORÇAMENTO.Nivel="Nível 2")+8*(ORÇAMENTO.Nivel="Nível 3")+16*(ORÇAMENTO.Nivel="Nível 4")+32*(ORÇAMENTO.Nivel="Serviço"),2),0,1,2,3,4,"S") -> 1 | B19: =IF(OR(C19="s",C19=0),OFFSET(B19,-1,0),C19) -> 1 | C19: =IF(OFFSET(C19,-1,0)="L",1,IF(OFFSET(C19,-1,0)=1,2,IF(OR(A19="s",A19=0),"S",IF(AND(OFFSET(C19,-1,0)=2,A19=4),3,IF(AND(OR(OFFSET(C19,-1,0)="s",OFFSET(C19,-1,0)=0),A19<>"s",A19>OFFSET(B19,-1,0)),OFFSET(B19,-1,0),A19))))) -> 1 | D19: =IF(OR(C19="S",C19=0),0,IF(ISERROR(K19),J19,SMALL(J19:K19,1))) -> 488 | E19: =IF($C19=1,OFFSET(E19,-1,0)+1,OFFSET(E19,-1,0)) -> 1 | F19: =IF($C19=1,0,IF($C19=2,OFFSET(F19,-1,0)+1,OFFSET(F19,-1,0))) -> 0 | G19: =IF(AND($C19<=2,$C19<>0),0,IF($C19=3,OFFSET(G19,-1,0)+1,OFFSET(G19,-1,0))) -> 0 | H19: =IF(AND($C19<=3,$C19<>0),0,IF($C19=4,OFFSET(H19,-1,0)+1,OFFSET(H19,-1,0))) -> 0 | I19: =IF(AND($C19<=4,$C19<>0),0,IF(AND($C19="S",$W19>0),OFFSET(I19,-1,0)+1,OFFSET(I19,-1,0))) -> 0 | J19: =IF(OR($C19="S",$C19=0),0,MATCH(0,OFFSET($D19,1,$C19,ROW($C$742)-ROW($C19)),0)) -> 723 | K19: =IF(OR($C19="S",$C19=0),0,MATCH(OFFSET($D19,0,$C19)+1,OFFSET($D19,1,$C19,ROW($C$742)-ROW($C19)),0)) -> 488 | L19: F | M19: Nível 1 | N19: Nível 1 | O19: 1. | P19: AGETOP | R19: REFORMA
A20: =CHOOSE(1+LOG(1+2*(ORÇAMENTO.Nivel="Nível 1")+4*(ORÇAMENTO.Nivel="Nível 2")+8*(ORÇAMENTO.Nivel="Nível 3")+16*(ORÇAMENTO.Nivel="Nível 4")+32*(ORÇAMENTO.Nivel="Serviço"),2),0,1,2,3,4,"S") -> 2 | B20: =IF(OR(C20="s",C20=0),OFFSET(B20,-1,0),C20) -> 2 | C20: =IF(OFFSET(C20,-1,0)="L",1,IF(OFFSET(C20,-1,0)=1,2,IF(OR(A20="s",A20=0),"S",IF(AND(OFFSET(C20,-1,0)=2,A20=4),3,IF(AND(OR(OFFSET(C20,-1,0)="s",OFFSET(C20,-1,0)=0),A20<>"s",A20>OFFSET(B20,-1,0)),OFFSET(B20,-1,0),A20))))) -> 2 | D20: =IF(OR(C20="S",C20=0),0,IF(ISERROR(K20),J20,SMALL(J20:K20,1))) -> 41 | E20: =IF($C20=1,OFFSET(E20,-1,0)+1,OFFSET(E20,-1,0)) -> 1 | F20: =IF($C20=1,0,IF($C20=2,OFFSET(F20,-1,0)+1,OFFSET(F20,-1,0))) -> 1 | G20: =IF(AND($C20<=2,$C20<>0),0,IF($C20=3,OFFSET(G20,-1,0)+1,OFFSET(G20,-1,0))) -> 0 | H20: =IF(AND($C20<=3,$C20<>0),0,IF($C20=4,OFFSET(H20,-1,0)+1,OFFSET(H20,-1,0))) -> 0 | I20: =IF(AND($C20<=4,$C20<>0),0,IF(AND($C20="S",$W20>0),OFFSET(I20,-1,0)+1,OFFSET(I20,-1,0))) -> 0 | J20: 487 | K20: 41 | L20: F | M20: Nível 2 | N20: Nível 2 | O20: 1.1. | P20: AGETOP | R20: SERVIÇOS PRELIMINARES
A21: =CHOOSE(1+LOG(1+2*(ORÇAMENTO.Nivel="Nível 1")+4*(ORÇAMENTO.Nivel="Nível 2")+8*(ORÇAMENTO.Nivel="Nível 3")+16*(ORÇAMENTO.Nivel="Nível 4")+32*(ORÇAMENTO.Nivel="Serviço"),2),0,1,2,3,4,"S") -> 3 | B21: =IF(OR(C21="s",C21=0),OFFSET(B21,-1,0),C21) -> 3 | C21: =IF(OFFSET(C21,-1,0)="L",1,IF(OFFSET(C21,-1,0)=1,2,IF(OR(A21="s",A21=0),"S",IF(AND(OFFSET(C21,-1,0)=2,A21=4),3,IF(AND(OR(OFFSET(C21,-1,0)="s",OFFSET(C21,-1,0)=0),A21<>"s",A21>OFFSET(B21,-1,0)),OFFSET(B21,-1,0),A21))))) -> 3 | D21: =IF(OR(C21="S",C21=0),0,IF(ISERROR(K21),J21,SMALL(J21:K21,1))) -> 17 | E21: =IF($C21=1,OFFSET(E21,-1,0)+1,OFFSET(E21,-1,0)) -> 1 | F21: =IF($C21=1,0,IF($C21=2,OFFSET(F21,-1,0)+1,OFFSET(F21,-1,0))) -> 1 | G21: =IF(AND($C21<=2,$C21<>0),0,IF($C21=3,OFFSET(G21,-1,0)+1,OFFSET(G21,-1,0))) -> 1 | H21: =IF(AND($C21<=3,$C21<>0),0,IF($C21=4,OFFSET(H21,-1,0)+1,OFFSET(H21,-1,0))) -> 0 | I21: =IF(AND($C21<=4,$C21<>0),0,IF(AND($C21="S",$W21>0),OFFSET(I21,-1,0)+1,OFFSET(I21,-1,0))) -> 0 | J21: 40 | K21: 17 | L21: F | M21: Nível 3 | N21: Nível 3 | O21: 1.1.1. | P21: SINAPI | R21: GERAL | S21: - | U21: 0 | V21: 0
A22: S | B22: 3 | C22: S | D22: 0 | E22: 1 | F22: 1 | G22: 1 | H22: 0 | I22: 0 | J22: 0 | K22: 0 | L22: F | M22: Serviço | N22: Serviço | O22: 1.1.1.0.1. | P22: SINAPI | Q22: 97640 | R22: REMOÇÃO DE FORROS DE DRYWALL, PVC E FIBROMINERAL, DE FORMA MANUAL, SEM REAPROVEITAMENTO. AF_12/2017 | S22: M2 | T22: 410
A23: S | B23: 3 | C23: S | D23: 0 | E23: 1 | F23: 1 | G23: 1 | H23: 0 | I23: 0 | J23: 0 | K23: 0 | L23: F | M23: Serviço | N23: Serviço | O23: 1.1.1.0.2. | P23: SINAPI | Q23: 97642 | R23: REMOÇÃO DE TRAMA METÁLICA OU DE MADEIRA PARA FORRO, DE FORMA MANUAL, SEM REAPROVEITAMENTO. AF_12/2017 | S23: M2 | T23: 205
A24: S | B24: 3 | C24: S | D24: 0 | E24: 1 | F24: 1 | G24: 1 | H24: 0 | I24: 0 | J24: 0 | K24: 0 | L24: F | M24: Serviço | N24: Serviço | O24: 1.1.1.0.3. | P24: AGETOP | Q24: 20101 | R24: DEMOLICAO COBERTURA TELHA CERAMICA C/ TRANSP. ATÉ CB. E CARGA | S24: m2 | T24: 251
A25: S | B25: 3 | C25: S | D25: 0 | E25: 1 | F25: 1 | G25: 1 | H25: 0 | I25: 0 | J25: 0 | K25: 0 | L25: F | M25: Serviço | N25: Serviço | O25: 1.1.1.0.4. | P25: SINAPI | Q25: 100330 | R25: RETIRADA E RECOLOCAÇÃO DE TELHA CERÂMICA CAPA-CANAL, COM ATÉ DUAS ÁGUAS, INCLUSO IÇAMENTO. AF_07/2019 | S25: M2 | T25: 251
A26: S | B26: 3 | C26: S | D26: 0 | E26: 1 | F26: 1 | G26: 1 | H26: 0 | I26: 0 | J26: 0 | K26: 0 | L26: F | M26: Serviço | N26: Serviço | O26: 1.1.1.0.5. | P26: AGETOP | Q26: 20103 | R26: DEMOLIÇÃO ESTRUTURA EM MADEIRA TELHADO C/ TRANSP. ATÉ CB. E CARGA | S26: m2 | T26: 50
A27: S | B27: 3 | C27: S | D27: 0 | E27: 1 | F27: 1 | G27: 1 | H27: 0 | I27: 0 | J27: 0 | K27: 0 | L27: F | M27: Serviço | N27: Serviço | O27: 1.1.1.0.6. | P27: AGETOP | Q27: 20102 | R27: DEMOLICAO-COBERTURA TELHA FIBROCIMENTO/FIBRA DE VIDRO/SIMILARES C/ TRANSP. ATÉ CB. E CARGA | S27: m2 | T27: 13
A28: S | B28: 3 | C28: S | D28: 0 | E28: 1 | F28: 1 | G28: 1 | H28: 0 | I28: 0 | J28: 0 | K28: 0 | L28: F | M28: Serviço | N28: Serviço | O28: 1.1.1.0.7. | P28: AGETOP | Q28: 20111 | R28: DEM.PISO CERAM.SOBRE LASTRO CONC.C/TR.CB.E CARGA | S28: m2 | T28: 521.44
A29: S | B29: 3 | C29: S | D29: 0 | E29: 1 | F29: 1 | G29: 1 | H29: 0 | I29: 0 | J29: 0 | K29: 0 | L29: F | M29: Serviço | N29: Serviço | O29: 1.1.1.0.8. | P29: AGETOP | Q29: 20121 | R29: DEM. MANUAL EM CONCR.SIMPLES C/TR.ATE CB.E CARGA (O.C.) | S29: m3 | T29: 0.13
A30: S | B30: 3 | C30: S | D30: 0 | E30: 1 | F30: 1 | G30: 1 | H30: 0 | I30: 0 | J30: 0 | K30: 0 | L30: F | M30: Serviço | N30: Serviço | O30: 1.1.1.0.9. | P30: SINAPI | Q30: 97633 | R30: DEMOLIÇÃO DE REVESTIMENTO CERÂMICO, DE FORMA MANUAL, SEM REAPROVEITAMENTO. AF_12/2017 | S30: M2 | T30: 24.6 | X30: Referência: AGETOP - 20115
A31: S | B31: 3 | C31: S | D31: 0 | E31: 1 | F31: 1 | G31: 1 | H31: 0 | I31: 0 | J31: 0 | K31: 0 | L31: F | M31: Serviço | N31: Serviço | O31: 1.1.1.0.10. | P31: SINAPI | Q31: 97622 | R31: DEMOLIÇÃO DE ALVENARIA DE BLOCO FURADO, DE FORMA MANUAL, SEM REAPROVEITAMENTO. AF_12/2017 | S31: M3 | T31: 0.1 | X31: Referência: AGETOP - 20118
A32: S | B32: 3 | C32: S | D32: 0 | E32: 1 | F32: 1 | G32: 1 | H32: 0 | I32: 0 | J32: 0 | K32: 0 | L32: F | M32: Serviço | N32: Serviço | O32: 1.1.1.0.11. | P32: AGETOP | Q32: 20137 | R32: DEMOLIÇAO BACIA SANITARIA C/ TRANSP. ATÉ CB. E CARGA | S32: Un | T32: 3
A33: S | B33: 3 | C33: S | D33: 0 | E33: 1 | F33: 1 | G33: 1 | H33: 0 | I33: 0 | J33: 0 | K33: 0 | L33: F | M33: Serviço | N33: Serviço | O33: 1.1.1.0.12. | P33: AGETOP | Q33: 20138 | R33: DEMOLIÇAO DE LAVATÓRIO C/ TRANSP. ATÉ CB. E CARGA | S33: Un | T33: 1
A34: S | B34: 3 | C34: S | D34: 0 | E34: 1 | F34: 1 | G34: 1 | H34: 0 | I34: 0 | J34: 0 | K34: 0 | L34: F | M34: Serviço | N34: Serviço | O34: 1.1.1.0.13. | P34: AGETOP | Q34: 20140 | R34: DEMOLIÇAO DE VÁLVULA DE DESCARGA C/ TRANSP. ATÉ CB. E CARGA | S34: Un | T34: 3
A35: S | B35: 3 | C35: S | D35: 0 | E35: 1 | F35: 1 | G35: 1 | H35: 0 | I35: 0 | J35: 0 | K35: 0 | L35: F | M35: Serviço | N35: Serviço | O35: 1.1.1.0.14. | P35: AGETOP | Q35: 20163 | R35: DEMOLIÇÃO DAS INSTALAÇÕES HIDROSANITÁRIAS E AFINS C/ TRANSP. ATÉ CB. E CARGA | S35: H | T35: 5.5
A36: S | B36: 3 | C36: S | D36: 0 | E36: 1 | F36: 1 | G36: 1 | H36: 0 | I36: 0 | J36: 0 | K36: 0 | L36: F | M36: Serviço | N36: Serviço | O36: 1.1.1.0.15. | P36: AGETOP | Q36: 72080 | R36: POSTE/TRAFO - CAMINHÃO MUNCK 12 TON. (MÍNIMO 4H/DIA) | S36: H | T36: 4 | X36: Referência: AGETOP - 20202
A37: S | B37: 3 | C37: S | D37: 0 | E37: 1 | F37: 1 | G37: 1 | H37: 0 | I37: 0 | J37: 0 | K37: 0 | L37: F | M37: Serviço | N37: Serviço | O37: 1.1.1.0.16. | P37: SINAPI | Q37: 74209/1 | R37: PLACA DE OBRA EM CHAPA DE ACO GALVANIZADO | S37: M2 | T37: 7.5 | X37: Referência: AGETOP - 21301
A38: 3 | B38: 3 | C38: 3 | D38: 2 | E38: 1 | F38: 1 | G38: 2 | H38: 0 | I38: 0 | J38: 23 | K38: 2 | L38: F | M38: Nível 3 | N38: Nível 3 | O38: 1.1.2. | P38: SINAPI | R38: PÁTIO MULTIUSO | S38: -
A39: S | B39: 3 | C39: S | D39: 0 | E39: 1 | F39: 1 | G39: 2 | H39: 0 | I39: 0 | J39: 0 | K39: 0 | L39: F | M39: Serviço | N39: Serviço | O39: 1.1.2.0.1. | P39: SINAPI | Q39: 97622 | R39: DEMOLIÇÃO DE ALVENARIA DE BLOCO FURADO, DE FORMA MANUAL, SEM REAPROVEITAMENTO. AF_12/2017 | S39: M3 | T39: 2.03 | X39: Referência: AGETOP - 20118
A40: 3 | B40: 3 | C40: 3 | D40: 3 | E40: 1 | F40: 1 | G40: 3 | H40: 0 | I40: 0 | J40: 21 | K40: 3 | L40: F | M40: Nível 3 | N40: Nível 3 | O40: 1.1.3. | P40: SINAPI | R40: CENTRAL DE GÁS | S40: -
A41: S | B41: 3 | C41: S | D41: 0 | E41: 1 | F41: 1 | G41: 3 | H41: 0 | I41: 0 | J41: 0 | K41: 0 | L41: F | M41: Serviço | N41: Serviço | O41: 1.1.3.0.1. | P41: SINAPI | Q41: 97622 | R41: DEMOLIÇÃO DE ALVENARIA DE BLOCO FURADO, DE FORMA MANUAL, SEM REAPROVEITAMENTO. AF_12/2017 | S41: M3 | T41: 1 | X41: Referência: AGETOP - 20118
A42: S | B42: 3 | C42: S | D42: 0 | E42: 1 | F42: 1 | G42: 3 | H42: 0 | I42: 0 | J42: 0 | K42: 0 | L42: F | M42: Serviço | N42: Serviço | O42: 1.1.3.0.2. | P42: SINAPI | Q42: 97644 | R42: REMOÇÃO DE PORTAS, DE FORMA MANUAL, SEM REAPROVEITAMENTO. AF_12/2017 | S42: M2 | T42: 2.56 | X42: Referência: AGETOP - 20106
A43: =CHOOSE(1+LOG(1+2*(ORÇAMENTO.Nivel="Nível 1")+4*(ORÇAMENTO.Nivel="Nível 2")+8*(ORÇAMENTO.Nivel="Nível 3")+16*(ORÇAMENTO.Nivel="Nível 4")+32*(ORÇAMENTO.Nivel="Serviço"),2),0,1,2,3,4,"S") -> 3 | B43: 3 | C43: 3 | D43: 9 | E43: 1 | F43: 1 | G43: 4 | H43: 0 | I43: =IF(AND($C43<=4,$C43<>0),0,IF(AND($C43="S",$W43>0),OFFSET(I43,-1,0)+1,OFFSET(I43,-1,0))) -> 0 | J43: 18 | K43: 9 | L43: F | M43: Nível 3 | N43: Nível 3 | O43: 1.1.4. | P43: SINAPI | R43: COZINHA, DESPENSA, CANTINA, DEP. MERENDA E SALA DE ESTUDOS | S43: -
A44: =CHOOSE(1+LOG(1+2*(ORÇAMENTO.Nivel="Nível 1")+4*(ORÇAMENTO.Nivel="Nível 2")+8*(ORÇAMENTO.Nivel="Nível 3")+16*(ORÇAMENTO.Nivel="Nível 4")+32*(ORÇAMENTO.Nivel="Serviço"),2),0,1,2,3,4,"S") -> S | B44: 3 | C44: S | D44: 0 | E44: 1 | F44: 1 | G44: 4 | H44: 0 | I44: =IF(AND($C44<=4,$C44<>0),0,IF(AND($C44="S",$W44>0),OFFSET(I44,-1,0)+1,OFFSET(I44,-1,0))) -> 0 | J44: 0 | K44: 0 | L44: F | M44: Serviço | N44: Serviço | O44: 1.1.4.0.1. | P44: AGETOP | Q44: 20111 | R44: DEM.PISO CERAM.SOBRE LASTRO CONC.C/TR.CB.E CARGA | S44: m2 | T44: 70.9
A45: =CHOOSE(1+LOG(1+2*(ORÇAMENTO.Nivel="Nível 1")+4*(ORÇAMENTO.Nivel="Nível 2")+8*(ORÇAMENTO.Nivel="Nível 3")+16*(ORÇAMENTO.Nivel="Nível 4")+32*(ORÇAMENTO.Nivel="Serviço"),2),0,1,2,3,4,"S") -> S | B45: 3 | C45: S | D45: 0 | E45: 1 | F45: 1 | G45: 4 | H45: 0 | I45: =IF(AND($C45<=4,$C45<>0),0,IF(AND($C45="S",$W45>0),OFFSET(I45,-1,0)+1,OFFSET(I45,-1,0))) -> 0 | J45: 0 | K45: 0 | L45: F | M45: Serviço | N45: Serviço | O45: 1.1.4.0.2. | P45: SINAPI | Q45: 97633 | R45: DEMOLIÇÃO DE REVESTIMENTO CERÂMICO, DE FORMA MANUAL, SEM REAPROVEITAMENTO. AF_12/2017 | S45: M2 | T45: 194.19 | X45: Referência: AGETOP - 20115
A46: S | B46: 3 | C46: S | D46: 0 | E46: 1 | F46: 1 | G46: 4 | H46: 0 | I46: 0 | J46: 0 | K46: 0 | L46: F | M46: Serviço | N46: Serviço | O46: 1.1.4.0.3. | P46: SINAPI | Q46: 97622 | R46: DEMOLIÇÃO DE ALVENARIA DE BLOCO FURADO, DE FORMA MANUAL, SEM REAPROVEITAMENTO. AF_12/2017 | S46: M3 | T46: 2.52 | X46: Referência: AGETOP - 20118
A47: S | B47: 3 | C47: S | D47: 0 | E47: 1 | F47: 1 | G47: 4 | H47: 0 | I47: 0 | J47: 0 | K47: 0 | L47: F | M47: Serviço | N47: Serviço | O47: 1.1.4.0.4. | P47: SINAPI | Q47: 97644 | R47: REMOÇÃO DE PORTAS, DE FORMA MANUAL, SEM REAPROVEITAMENTO. AF_12/2017 | S47: M2 | T47: 1.68 | X47: Referência: AGETOP - 20106
A48: S | B48: 3 | C48: S | D48: 0 | E48: 1 | F48: 1 | G48: 4 | H48: 0 | I48: 0 | J48: 0 | K48: 0 | L48: F | M48: Serviço | N48: Serviço | O48: 1.1.4.0.5. | P48: AGETOP | Q48: 20139 | R48: DEMOLIÇAO DE BANCADAS C/ TRANSP. ATÉ CB. E CARGA | S48: m2 | T48: 2.03
A49: S | B49: 3 | C49: S | D49: 0 | E49: 1 | F49: 1 | G49: 4 | H49: 0 | I49: 0 | J49: 0 | K49: 0 | L49: F | M49: Serviço | N49: Serviço | O49: 1.1.4.0.6. | P49: SINAPI | Q49: 97640 | R49: REMOÇÃO DE FORROS DE DRYWALL, PVC E FIBROMINERAL, DE FORMA MANUAL, SEM REAPROVEITAMENTO. AF_12/2017 | S49: M2 | T49: 70.9
A50: S | B50: 3 | C50: S | D50: 0 | E50: 1 | F50: 1 | G50: 4 | H50: 0 | I50: 0 | J50: 0 | K50: 0 | L50: F | M50: Serviço | N50: Serviço | O50: 1.1.4.0.7. | P50: SINAPI | Q50: 97642 | R50: REMOÇÃO DE TRAMA METÁLICA OU DE MADEIRA PARA FORRO, DE FORMA MANUAL, SEM REAPROVEITAMENTO. AF_12/2017 | S50: M2 | T50: 35.45
A51: S | B51: 3 | C51: S | D51: 0 | E51: 1 | F51: 1 | G51: 4 | H51: 0 | I51: 0 | J51: 0 | K51: 0 | L51: F | M51: Serviço | N51: Serviço | O51: 1.1.4.0.8. | P51: AGETOP | Q51: 20163 | R51: DEMOLIÇÃO DAS INSTALAÇÕES HIDROSANITÁRIAS E AFINS C/ TRANSP. ATÉ CB. E CARGA | S51: H | T51: 1
A52: 3 | B52: 3 | C52: 3 | D52: 2 | E52: 1 | F52: 1 | G52: 5 | H52: 0 | I52: 0 | J52: 9 | K52: 2 | L52: F | M52: Nível 3 | N52: Nível 3 | O52: 1.1.5. | P52: SINAPI | R52: BLOCO 01 E 02 | S52: -
A53: S | B53: 3 | C53: S | D53: 0 | E53: 1 | F53: 1 | G53: 5 | H53: 0 | I53: 0 | J53: 0 | K53: 0 | L53: F | M53: Serviço | N53: Serviço | O53: 1.1.5.0.1. | P53: AGETOP | Q53: 20111 | R53: DEM.PISO CERAM.SOBRE LASTRO CONC.C/TR.CB.E CARGA | S53: m2 | T53: 1335.08
A54: 3 | B54: 3 | C54: 3 | D54: 5 | E54: 1 | F54: 1 | G54: 6 | H54: 0 | I54: 0 | J54: 7 | K54: 5 | L54: F | M54: Nível 3 | N54: Nível 3 | O54: 1.1.6. | R54: VESTIÁRIO MASCULINO | S54: -
A55: S | B55: 3 | C55: S | D55: 0 | E55: 1 | F55: 1 | G55: 6 | H55: 0 | I55: 0 | J55: 0 | K55: 0 | L55: F | M55: Serviço | N55: Serviço | O55: 1.1.6.0.1. | P55: SINAPI | Q55: 97622 | R55: DEMOLIÇÃO DE ALVENARIA DE BLOCO FURADO, DE FORMA MANUAL, SEM REAPROVEITAMENTO. AF_12/2017 | S55: M3 | T55: 1.18 | X55: Referência: AGETOP - 20118
A56: S | B56: 3 | C56: S | D56: 0 | E56: 1 | F56: 1 | G56: 6 | H56: 0 | I56: 0 | J56: 0 | K56: 0 | L56: F | M56: Serviço | N56: Serviço | O56: 1.1.6.0.2. | P56: SINAPI | Q56: 97644 | R56: REMOÇÃO DE PORTAS, DE FORMA MANUAL, SEM REAPROVEITAMENTO. AF_12/2017 | S56: M2 | T56: 2.94 | X56: Referência: AGETOP - 20106
A57: S | B57: 3 | C57: S | D57: 0 | E57: 1 | F57: 1 | G57: 6 | H57: 0 | I57: 0 | J57: 0 | K57: 0 | L57: F | M57: Serviço | N57: Serviço | O57: 1.1.6.0.3. | P57: AGETOP | Q57: 20111 | R57: DEM.PISO CERAM.SOBRE LASTRO CONC.C/TR.CB.E CARGA | S57: m2 | T57: 21.76
A58: S | B58: 3 | C58: S | D58: 0 | E58: 1 | F58: 1 | G58: 6 | H58: 0 | I58: 0 | J58: 0 | K58: 0 | L58: F | M58: Serviço | N58: Serviço | O58: 1.1.6.0.4. | P58: AGETOP | Q58: 20137 | R58: DEMOLIÇAO BACIA SANITARIA C/ TRANSP. ATÉ CB. E CARGA | S58: Un | T58: 1
A59: 3 | B59: 3 | C59: 3 | D59: 2 | E59: 1 | F59: 1 | G59: 7 | H59: 0 | I59: 0 | J59: 2 | L59: F | M59: Nível 3 | N59: Nível 3 | O59: 1.1.7. | P59: SINAPI | R59: INST. ELÉTRICAS | S59: -
A60: S | B60: 3 | C60: S | D60: 0 | E60: 1 | F60: 1 | G60: 7 | H60: 0 | I60: 0 | J60: 0 | K60: 0 | L60: F | M60: Serviço | N60: Serviço | O60: 1.1.7.0.1. | P60: AGETOP | Q60: 20162 | R60: DEMOLIÇÃO DAS INSTALAÇÕES ELÉTRICAS E AFINS C/ TRANSP. ATÉ CB. E CARGA | S60: H | T60: 40
A61: 2 | B61: 2 | C61: 2 | D61: 3 | E61: 1 | F61: 2 | G61: 0 | H61: 0 | I61: 0 | J61: 446 | K61: 3 | L61: F | M61: Nível 2 | N61: Nível 2 | O61: 1.2. | P61: AGETOP | R61: TRANSPORTES | S61: -
A62: S | B62: 2 | C62: S | D62: 0 | E62: 1 | F62: 2 | G62: 0 | H62: 0 | I62: 0 | J62: 0 | K62: 0 | L62: F | M62: Serviço | N62: Serviço | O62: 1.2.0.0.1. | P62: SINAPI | Q62: 72900 | R62: TRANSPORTE DE ENTULHO COM CAMINHAO BASCULANTE 6 M3, RODOVIA PAVIMENTADA, DMT 0,5 A 1,0 KM | S62: M3 | T62: 142.4225
A63: S | B63: 2 | C63: S | D63: 0 | E63: 1 | F63: 2 | G63: 0 | H63: 0 | I63: 0 | J63: 0 | K63: 0 | L63: F | M63: Serviço | N63: Serviço | O63: 1.2.0.0.2. | P63: SINAPI | Q63: 72897 | R63: CARGA MANUAL DE ENTULHO EM CAMINHAO BASCULANTE 6 M3 | S63: M3 | T63: 142.4225
A64: 2 | B64: 2 | C64: 2 | D64: 28 | E64: 1 | F64: 3 | G64: 0 | H64: 0 | I64: 0 | J64: 443 | K64: 28 | L64: F | M64: Nível 2 | N64: Nível 2 | O64: 1.3. | P64: AGETOP | R64: SERVIÇO EM TERRA | S64: -
A65: 3 | B65: 3 | C65: 3 | D65: 8 | E65: 1 | F65: 3 | G65: 1 | H65: 0 | I65: 0 | J65: 27 | K65: 8 | L65: F | M65: Nível 3 | N65: Nível 3 | O65: 1.3.1. | R65: AMPLIAÇÃO COZINHA COM REFEITÓRIO | S65: -
A66: S | B66: 3 | C66: S | D66: 0 | E66: 1 | F66: 3 | G66: 1 | H66: 0 | I66: 0 | J66: 0 | K66: 0 | L66: F | M66: Serviço | N66: Serviço | O66: 1.3.1.0.1. | P66: SINAPI | Q66: 73859/2 | R66: CAPINA E LIMPEZA MANUAL DE TERRENO | S66: M2 | T66: 190.5
A67: S | B67: 3 | C67: S | D67: 0 | E67: 1 | F67: 3 | G67: 1 | H67: 0 | I67: 0 | J67: 0 | K67: 0 | L67: F | M67: Serviço | N67: Serviço | O67: 1.3.1.0.2. | P67: AGETOP | Q67: 41140 | R67: REGULARIZAÇÃO DO TERRENO SEM APILOAMENTO COM TRANSPORTE MANUAL DA TERRA ESCAVADA | S67: m2 | T67: 190.5
A68: S | B68: 3 | C68: S | D68: 0 | E68: 1 | F68: 3 | G68: 1 | H68: 0 | I68: 0 | J68: 0 | K68: 0 | L68: F | M68: Serviço | N68: Serviço | O68: 1.3.1.0.3. | P68: SINAPI | Q68: 79480 | R68: ESCAVACAO MECANICA CAMPO ABERTO EM SOLO EXCETO ROCHA ATE 2,00M PROFUNDIDADE | S68: M3 | T68: 47.625 | X68: Referência: AGETOP - 41004
A69: S | B69: 3 | C69: S | D69: 0 | E69: 1 | F69: 3 | G69: 1 | H69: 0 | I69: 0 | J69: 0 | K69: 0 | L69: F | M69: Serviço | N69: Serviço | O69: 1.3.1.0.4. | P69: SINAPI | Q69: 72898 | R69: CARGA E DESCARGA MECANIZADAS DE ENTULHO EM CAMINHAO BASCULANTE 6 M3 | S69: M3 | T69: 47.625 | X69: Referência: AGETOP - 41005
A70: S | B70: 3 | C70: S | D70: 0 | E70: 1 | F70: 3 | G70: 1 | H70: 0 | I70: 0 | J70: 0 | K70: 0 | L70: F | M70: Serviço | N70: Serviço | O70: 1.3.1.0.5. | P70: AGETOP | Q70: 41012 | R70: INDENIZAÇÃO DE JAZIDA | S70: m3 | T70: 47.625
A71: S | B71: 3 | C71: S | D71: 0 | E71: 1 | F71: 3 | G71: 1 | H71: 0 | I71: 0 | J71: 0 | K71: 0 | L71: F | M71: Serviço | N71: Serviço | O71: 1.3.1.0.6. | P71: AGETOP | Q71: 41006 | R71: TRANSPORTE DE MATERIAL ESCAVADO M3.KM | S71: m3km | T71: 476.25
A72: S | B72: 3 | C72: S | D72: 0 | E72: 1 | F72: 3 | G72: 1 | H72: 0 | I72: 0 | J72: 0 | K72: 0 | L72: F | M72: Serviço | N72: Serviço | O72: 1.3.1.0.7. | P72: SINAPI | Q72: 74005/1 | R72: COMPACTACAO MECANICA, SEM CONTROLE DO GC (C/COMPACTADOR PLACA 400 KG) | S72: M3 | T72: 50 | X72: Referência: AGETOP - 41008
A73: 3 | B73: 3 | C73: 3 | D73: 2 | E73: 1 | F73: 3 | G73: 2 | H73: 0 | I73: 0 | J73: 19 | K73: 2 | L73: F | M73: Nível 3 | N73: Nível 3 | O73: 1.3.2. | P73: SINAPI | R73: GERAL | S73: -
A74: S | B74: 3 | C74: S | D74: 0 | E74: 1 | F74: 3 | G74: 2 | H74: 0 | I74: 0 | J74: 0 | K74: 0 | L74: F | M74: Serviço | N74: Serviço | O74: 1.3.2.0.1. | P74: AGETOP | Q74: 50620 | R74: PEDRA MARROADA COM LANCAMENTO | S74: m3 | T74: 2.7
A75: 3 | B75: 3 | C75: 3 | D75: 8 | E75: 1 | F75: 3 | G75: 3 | H75: 0 | I75: 0 | J75: 17 | K75: 8 | L75: F | M75: Nível 3 | N75: Nível 3 | O75: 1.3.3. | R75: AMPLIAÇÃO PASSARELA M2 - SEC. XXI - REV. 2015 | S75: -
A76: S | B76: 3 | C76: S | D76: 0 | E76: 1 | F76: 3 | G76: 3 | H76: 0 | I76: 0 | J76: 0 | K76: 0 | L76: F | M76: Serviço | N76: Serviço | O76: 1.3.3.0.1. | P76: SINAPI | Q76: 73859/2 | R76: CAPINA E LIMPEZA MANUAL DE TERRENO | S76: M2 | T76: 26.55
A77: S | B77: 3 | C77: S | D77: 0 | E77: 1 | F77: 3 | G77: 3 | H77: 0 | I77: 0 | J77: 0 | K77: 0 | L77: F | M77: Serviço | N77: Serviço | O77: 1.3.3.0.2. | P77: AGETOP | Q77: 41140 | R77: REGULARIZAÇÃO DO TERRENO SEM APILOAMENTO COM TRANSPORTE MANUAL DA TERRA ESCAVADA | S77: m2 | T77: 26.55 | X77: Referência: AGETOP - 41005
A78: S | B78: 3 | C78: S | D78: 0 | E78: 1 | F78: 3 | G78: 3 | H78: 0 | I78: 0 | J78: 0 | K78: 0 | L78: F | M78: Serviço | N78: Serviço | O78: 1.3.3.0.3. | P78: SINAPI | Q78: 79480 | R78: ESCAVACAO MECANICA CAMPO ABERTO EM SOLO EXCETO ROCHA ATE 2,00M PROFUNDIDADE | S78: M3 | T78: 16.6
A79: S | B79: 3 | C79: S | D79: 0 | E79: 1 | F79: 3 | G79: 3 | H79: 0 | I79: 0 | J79: 0 | K79: 0 | L79: F | M79: Serviço | N79: Serviço | O79: 1.3.3.0.4. | P79: SINAPI | Q79: 72898 | R79: CARGA E DESCARGA MECANIZADAS DE ENTULHO EM CAMINHAO BASCULANTE 6 M3 | S79: M3 | T79: 16.6 | X79: Referência: AGETOP - 41005
A80: S | B80: 3 | C80: S | D80: 0 | E80: 1 | F80: 3 | G80: 3 | H80: 0 | I80: 0 | J80: 0 | K80: 0 | L80: F | M80: Serviço | N80: Serviço | O80: 1.3.3.0.5. | P80: AGETOP | Q80: 41012 | R80: INDENIZAÇÃO DE JAZIDA | S80: m3 | T80: 16.6
A81: S | B81: 3 | C81: S | D81: 0 | E81: 1 | F81: 3 | G81: 3 | H81: 0 | I81: 0 | J81: 0 | K81: 0 | L81: F | M81: Serviço | N81: Serviço | O81: 1.3.3.0.6. | P81: AGETOP | Q81: 41006 | R81: TRANSPORTE DE MATERIAL ESCAVADO M3.KM | S81: m3km | T81: 166
A82: S | B82: 3 | C82: S | D82: 0 | E82: 1 | F82: 3 | G82: 3 | H82: 0 | I82: 0 | J82: 0 | K82: 0 | L82: F | M82: Serviço | N82: Serviço | O82: 1.3.3.0.7. | P82: SINAPI | Q82: 74005/1 | R82: COMPACTACAO MECANICA, SEM CONTROLE DO GC (C/COMPACTADOR PLACA 400 KG) | S82: M3 | T82: 16.74 | X82: Referência: AGETOP - 41008
A83: 3 | B83: 3 | C83: 3 | D83: 4 | E83: 1 | F83: 3 | G83: 4 | H83: 0 | I83: 0 | J83: =IF(OR($C83="S",$C83=0),0,MATCH(0,OFFSET($D83,1,$C83,ROW($C$742)-ROW($C83)),0)) -> 9 | K83: =IF(OR($C83="S",$C83=0),0,MATCH(OFFSET($D83,0,$C83)+1,OFFSET($D83,1,$C83,ROW($C$742)-ROW($C83)),0)) -> 4 | L83: F | M83: Nível 3 | N83: Nível 3 | O83: 1.3.4. | P83: SINAPI | R83: IMPLANTAÇÃO | S83: -
A84: S | B84: 3 | C84: S | D84: 0 | E84: 1 | F84: 3 | G84: 4 | H84: 0 | I84: 0 | J84: 0 | K84: 0 | L84: F | M84: Serviço | N84: Serviço | O84: 1.3.4.0.1. | P84: SINAPI | Q84: 73859/2 | R84: CAPINA E LIMPEZA MANUAL DE TERRENO | S84: M2 | T84: 169.8
A85: S | B85: 3 | C85: S | D85: 0 | E85: 1 | F85: 3 | G85: 4 | H85: 0 | I85: 0 | J85: 0 | K85: 0 | L85: F | M85: Serviço | N85: Serviço | O85: 1.3.4.0.2. | P85: AGETOP | Q85: 41140 | R85: REGULARIZAÇÃO DO TERRENO SEM APILOAMENTO COM TRANSPORTE MANUAL DA TERRA ESCAVADA | S85: m2 | T85: 169.8
A86: S | B86: 3 | C86: S | D86: 0 | E86: 1 | F86: 3 | G86: 4 | H86: 0 | I86: 0 | J86: 0 | K86: 0 | L86: F | M86: Serviço | N86: Serviço | O86: 1.3.4.0.3. | P86: SINAPI | Q86: 74005/1 | R86: COMPACTACAO MECANICA, SEM CONTROLE DO GC (C/COMPACTADOR PLACA 400 KG) | S86: M3 | T86: 20.1 | X86: Referência: AGETOP - 41009
A87: 3 | B87: 3 | C87: 3 | D87: 2 | E87: 1 | F87: 3 | G87: 5 | H87: 0 | I87: 0 | J87: 5 | K87: 2 | L87: F | M87: Nível 3 | N87: Nível 3 | O87: 1.3.5. | P87: SINAPI | R87: CANALETA COM GRELHA | S87: -
A88: S | B88: 3 | C88: S | D88: 0 | E88: 1 | F88: 3 | G88: 5 | H88: 0 | I88: 0 | J88: 0 | K88: 0 | L88: F | M88: Serviço | N88: Serviço | O88: 1.3.5.0.1. | P88: AGETOP | Q88: 40101 | R88: ESCAVACAO MANUAL DE VALAS < 1 MTS. (OBRAS CIVIS) | S88: m3 | T88: 1.56
A89: =CHOOSE(1+LOG(1+2*(ORÇAMENTO.Nivel="Nível 1")+4*(ORÇAMENTO.Nivel="Nível 2")+8*(ORÇAMENTO.Nivel="Nível 3")+16*(ORÇAMENTO.Nivel="Nível 4")+32*(ORÇAMENTO.Nivel="Serviço"),2),0,1,2,3,4,"S") -> 3 | B89: =IF(OR(C89="s",C89=0),OFFSET(B89,-1,0),C89) -> 3 | C89: =IF(OFFSET(C89,-1,0)="L",1,IF(OFFSET(C89,-1,0)=1,2,IF(OR(A89="s",A89=0),"S",IF(AND(OFFSET(C89,-1,0)=2,A89=4),3,IF(AND(OR(OFFSET(C89,-1,0)="s",OFFSET(C89,-1,0)=0),A89<>"s",A89>OFFSET(B89,-1,0)),OFFSET(B89,-1,0),A89))))) -> 3 | D89: =IF(OR(C89="S",C89=0),0,IF(ISERROR(K89),J89,SMALL(J89:K89,1))) -> 3 | E89: =IF($C89=1,OFFSET(E89,-1,0)+1,OFFSET(E89,-1,0)) -> 1 | F89: =IF($C89=1,0,IF($C89=2,OFFSET(F89,-1,0)+1,OFFSET(F89,-1,0))) -> 3 | G89: =IF(AND($C89<=2,$C89<>0),0,IF($C89=3,OFFSET(G89,-1,0)+1,OFFSET(G89,-1,0))) -> 6 | H89: =IF(AND($C89<=3,$C89<>0),0,IF($C89=4,OFFSET(H89,-1,0)+1,OFFSET(H89,-1,0))) -> 0 | I89: =IF(AND($C89<=4,$C89<>0),0,IF(AND($C89="S",$W89>0),OFFSET(I89,-1,0)+1,OFFSET(I89,-1,0))) -> 0 | J89: 3 | L89: F | M89: Nível 3 | N89: Nível 3 | O89: 1.3.6. | P89: SINAPI | R89: INST. ELÉTRICAS | S89: -
A90: =CHOOSE(1+LOG(1+2*(ORÇAMENTO.Nivel="Nível 1")+4*(ORÇAMENTO.Nivel="Nível 2")+8*(ORÇAMENTO.Nivel="Nível 3")+16*(ORÇAMENTO.Nivel="Nível 4")+32*(ORÇAMENTO.Nivel="Serviço"),2),0,1,2,3,4,"S") -> S | B90: =IF(OR(C90="s",C90=0),OFFSET(B90,-1,0),C90) -> 3 | C90: =IF(OFFSET(C90,-1,0)="L",1,IF(OFFSET(C90,-1,0)=1,2,IF(OR(A90="s",A90=0),"S",IF(AND(OFFSET(C90,-1,0)=2,A90=4),3,IF(AND(OR(OFFSET(C90,-1,0)="s",OFFSET(C90,-1,0)=0),A90<>"s",A90>OFFSET(B90,-1,0)),OFFSET(B90,-1,0),A90))))) -> S | D90: =IF(OR(C90="S",C90=0),0,IF(ISERROR(K90),J90,SMALL(J90:K90,1))) -> 0 | E90: =IF($C90=1,OFFSET(E90,-1,0)+1,OFFSET(E90,-1,0)) -> 1 | F90: =IF($C90=1,0,IF($C90=2,OFFSET(F90,-1,0)+1,OFFSET(F90,-1,0))) -> 3 | G90: =IF(AND($C90<=2,$C90<>0),0,IF($C90=3,OFFSET(G90,-1,0)+1,OFFSET(G90,-1,0))) -> 6 | H90: =IF(AND($C90<=3,$C90<>0),0,IF($C90=4,OFFSET(H90,-1,0)+1,OFFSET(H90,-1,0))) -> 0 | I90: =IF(AND($C90<=4,$C90<>0),0,IF(AND($C90="S",$W90>0),OFFSET(I90,-1,0)+1,OFFSET(I90,-1,0))) -> 0 | J90: 0 | K90: 0 | L90: F | M90: Serviço | N90: Serviço | O90: 1.3.6.0.1. | P90: SINAPI | Q90: 93358 | R90: ESCAVAÇÃO MANUAL DE VALA COM PROFUNDIDADE MENOR OU IGUAL A 1,30 M. AF_03/2016 | S90: M3 | T90: 6.6 | X90: Referência: AGETOP - 40101
A91: =CHOOSE(1+LOG(1+2*(ORÇAMENTO.Nivel="Nível 1")+4*(ORÇAMENTO.Nivel="Nível 2")+8*(ORÇAMENTO.Nivel="Nível 3")+16*(ORÇAMENTO.Nivel="Nível 4")+32*(ORÇAMENTO.Nivel="Serviço"),2),0,1,2,3,4,"S") -> S | B91: =IF(OR(C91="s",C91=0),OFFSET(B91,-1,0),C91) -> 3 | C91: =IF(OFFSET(C91,-1,0)="L",1,IF(OFFSET(C91,-1,0)=1,2,IF(OR(A91="s",A91=0),"S",IF(AND(OFFSET(C91,-1,0)=2,A91=4),3,IF(AND(OR(OFFSET(C91,-1,0)="s",OFFSET(C91,-1,0)=0),A91<>"s",A91>OFFSET(B91,-1,0)),OFFSET(B91,-1,0),A91))))) -> S | D91: =IF(OR(C91="S",C91=0),0,IF(ISERROR(K91),J91,SMALL(J91:K91,1))) -> 0 | E91: =IF($C91=1,OFFSET(E91,-1,0)+1,OFFSET(E91,-1,0)) -> 1 | F91: =IF($C91=1,0,IF($C91=2,OFFSET(F91,-1,0)+1,OFFSET(F91,-1,0))) -> 3 | G91: =IF(AND($C91<=2,$C91<>0),0,IF($C91=3,OFFSET(G91,-1,0)+1,OFFSET(G91,-1,0))) -> 6 | H91: =IF(AND($C91<=3,$C91<>0),0,IF($C91=4,OFFSET(H91,-1,0)+1,OFFSET(H91,-1,0))) -> 0 | I91: =IF(AND($C91<=4,$C91<>0),0,IF(AND($C91="S",$W91>0),OFFSET(I91,-1,0)+1,OFFSET(I91,-1,0))) -> 0 | J91: 0 | K91: 0 | L91: F | M91: Serviço | N91: Serviço | O91: 1.3.6.0.2. | P91: SINAPI | Q91: 93382 | R91: REATERRO MANUAL DE VALAS COM COMPACTAÇÃO MECANIZADA. AF_04/2016 | S91: M3 | T91: 6.6 | X91: Referência: AGETOP - 40904
A92: =CHOOSE(1+LOG(1+2*(ORÇAMENTO.Nivel="Nível 1")+4*(ORÇAMENTO.Nivel="Nível 2")+8*(ORÇAMENTO.Nivel="Nível 3")+16*(ORÇAMENTO.Nivel="Nível 4")+32*(ORÇAMENTO.Nivel="Serviço"),2),0,1,2,3,4,"S") -> 2 | B92: =IF(OR(C92="s",C92=0),OFFSET(B92,-1,0),C92) -> 2 | C92: =IF(OFFSET(C92,-1,0)="L",1,IF(OFFSET(C92,-1,0)=1,2,IF(OR(A92="s",A92=0),"S",IF(AND(OFFSET(C92,-1,0)=2,A92=4),3,IF(AND(OR(OFFSET(C92,-1,0)="s",OFFSET(C92,-1,0)=0),A92<>"s",A92>OFFSET(B92,-1,0)),OFFSET(B92,-1,0),A92))))) -> 2 | D92: =IF(OR(C92="S",C92=0),0,IF(ISERROR(K92),J92,SMALL(J92:K92,1))) -> 126 | E92: =IF($C92=1,OFFSET(E92,-1,0)+1,OFFSET(E92,-1,0)) -> 1 | F92: =IF($C92=1,0,IF($C92=2,OFFSET(F92,-1,0)+1,OFFSET(F92,-1,0))) -> 4 | G92: =IF(AND($C92<=2,$C92<>0),0,IF($C92=3,OFFSET(G92,-1,0)+1,OFFSET(G92,-1,0))) -> 0 | H92: =IF(AND($C92<=3,$C92<>0),0,IF($C92=4,OFFSET(H92,-1,0)+1,OFFSET(H92,-1,0))) -> 0 | I92: =IF(AND($C92<=4,$C92<>0),0,IF(AND($C92="S",$W92>0),OFFSET(I92,-1,0)+1,OFFSET(I92,-1,0))) -> 0 | J92: 415 | K92: 126 | L92: F | M92: Nível 2 | N92: Nível 2 | O92: 1.4. | R92: INSTALAÇÕES ELÉTRICAS | S92: -
A93: 3 | B93: 3 | C93: 3 | D93: 12 | E93: 1 | F93: 4 | G93: 1 | H93: 0 | I93: 0 | J93: 125 | K93: 12 | L93: F | M93: Nível 3 | N93: Nível 3 | O93: 1.4.1. | P93: SINAPI | R93: IMPLANTAÇÃO | S93: -
A94: S | B94: 3 | C94: S | D94: 0 | E94: 1 | F94: 4 | G94: 1 | H94: 0 | I94: 0 | J94: 0 | K94: 0 | L94: F | M94: Serviço | N94: Serviço | O94: 1.4.1.0.1. | P94: SINAPI | Q94: 93671 | R94: DISJUNTOR TRIPOLAR TIPO DIN, CORRENTE NOMINAL DE 32A - FORNECIMENTO E INSTALAÇÃO. AF_04/2016 | S94: UN | T94: 1 | X94: Referência: AGETOP - 71173
A95: S | B95: 3 | C95: S | D95: 0 | E95: 1 | F95: 4 | G95: 1 | H95: 0 | I95: 0 | J95: 0 | K95: 0 | L95: F | M95: Serviço | N95: Serviço | O95: 1.4.1.0.2. | P95: SINAPI | Q95: 91930 | R95: CABO DE COBRE FLEXÍVEL ISOLADO, 6 MM², ANTI-CHAMA 450/750 V, PARA CIRCUITOS TERMINAIS - FORNECIMENTO E INSTALAÇÃO. AF_12/2015 | S95: M | T95: 446.72 | X95: Referência: AGETOP - 70565
A96: S | B96: 3 | C96: S | D96: 0 | E96: 1 | F96: 4 | G96: 1 | H96: 0 | I96: 0 | J96: 0 | K96: 0 | L96: F | M96: Serviço | N96: Serviço | O96: 1.4.1.0.3. | P96: SINAPI | Q96: 91872 | R96: ELETRODUTO RÍGIDO ROSCÁVEL, PVC, DN 32 MM (1"), PARA CIRCUITOS TERMINAIS, INSTALADO EM PAREDE - FORNECIMENTO E INSTALAÇÃO. AF_12/2015 | S96: M | T96: 25.88 | X96: Referência: AGETOP - 71202
A97: S | B97: 3 | C97: S | D97: 0 | E97: 1 | F97: 4 | G97: 1 | H97: 0 | I97: 0 | J97: 0 | K97: 0 | L97: F | M97: Serviço | N97: Serviço | O97: 1.4.1.0.4. | P97: SINAPI | Q97: 91885 | R97: LUVA PARA ELETRODUTO, PVC, ROSCÁVEL, DN 32 MM (1"), PARA CIRCUITOS TERMINAIS, INSTALADA EM PAREDE - FORNECIMENTO E INSTALAÇÃO. AF_12/2015 | S97: UN | T97: 9 | X97: Referência: AGETOP - 71742
A98: S | B98: 3 | C98: S | D98: 0 | E98: 1 | F98: 4 | G98: 1 | H98: 0 | I98: 0 | J98: 0 | K98: 0 | L98: F | M98: Serviço | N98: Serviço | O98: 1.4.1.0.5. | P98: AGETOP | Q98: 70352 | R98: BRACADEIRA METALICA TIPO "U" DIAM. 1" | S98: Un | T98: 9
A99: S | B99: 3 | C99: S | D99: 0 | E99: 1 | F99: 4 | G99: 1 | H99: 0 | I99: 0 | J99: 0 | K99: 0 | L99: F | M99: Serviço | N99: Serviço | O99: 1.4.1.0.6. | P99: SINAPI | Q99: 83446 | R99: CAIXA DE PASSAGEM 30X30X40 COM TAMPA E DRENO BRITA | S99: UN | T99: 1
A100: S | B100: 3 | C100: S | D100: 0 | E100: 1 | F100: 4 | G100: 1 | H100: 0 | I100: 0 | J100: 0 | K100: 0 | L100: F | M100: Serviço | N100: Serviço | O100: 1.4.1.0.7. | P100: AGETOP | Q100: 71861 | R100: PARAFUSO P/BUCHA S-6 | S100: Un | T100: 72
A101: S | B101: 3 | C101: S | D101: 0 | E101: 1 | F101: 4 | G101: 1 | H101: 0 | I101: 0 | J101: 0 | K101: 0 | L101: F | M101: Serviço | N101: Serviço | O101: 1.4.1.0.8. | P101: AGETOP | Q101: 70391 | R101: BUCHA DE NYLON S-6 | S101: Un | T101: 72
A102: S | B102: 3 | C102: S | D102: 0 | E102: 1 | F102: 4 | G102: 1 | H102: 0 | I102: 0 | J102: 0 | K102: 0 | L102: F | M102: Serviço | N102: Serviço | O102: 1.4.1.0.9. | P102: SINAPI | Q102: 93358 | R102: ESCAVAÇÃO MANUAL DE VALA COM PROFUNDIDADE MENOR OU IGUAL A 1,30 M. AF_03/2016 | S102: M3 | T102: 4.05 | X102: Referência: AGETOP - 40101
A103: S | B103: 3 | C103: S | D103: 0 | E103: 1 | F103: 4 | G103: 1 | H103: 0 | I103: 0 | J103: 0 | K103: 0 | L103: F | M103: Serviço | N103: Serviço | O103: 1.4.1.0.10. | P103: SINAPI | Q103: 96995 | R103: REATERRO MANUAL APILOADO COM SOQUETE. AF_10/2017 | S103: M3 | T103: 4.05 | X103: Referência: AGETOP - 40902
A104: S | B104: 3 | C104: S | D104: 0 | E104: 1 | F104: 4 | G104: 1 | H104: 0 | I104: 0 | J104: 0 | K104: 0 | L104: F | M104: Serviço | N104: Serviço | O104: 1.4.1.0.11. | P104: AGETOP | Q104: 220102 | R104: PISO CONCRETO DESEMPENADO ESPESSURA = 5 CM 1:2,5:3,5 | S104: m2 | T104: 4.05
A105: 3 | B105: 3 | C105: 3 | D105: 9 | E105: 1 | F105: 4 | G105: 2 | H105: 0 | I105: 0 | J105: 113 | K105: 9 | L105: F | M105: Nível 3 | N105: Nível 3 | O105: 1.4.2. | P105: SINAPI | R105: ALARME DE INCÊNDIO / ILUMINAÇÃO DE EMERGÊNCIA | S105: -
A106: S | B106: 3 | C106: S | D106: 0 | E106: 1 | F106: 4 | G106: 2 | H106: 0 | I106: 0 | J106: 0 | K106: 0 | L106: F | M106: Serviço | N106: Serviço | O106: 1.4.2.0.1. | P106: SINAPI | Q106: 91868 | R106: ELETRODUTO RÍGIDO ROSCÁVEL, PVC, DN 32 MM (1"), PARA CIRCUITOS TERMINAIS, INSTALADO EM LAJE - FORNECIMENTO E INSTALAÇÃO. AF_12/2015 | S106: M | T106: 90 | X106: Referência: AGETOP - 71202
A107: S | B107: 3 | C107: S | D107: 0 | E107: 1 | F107: 4 | G107: 2 | H107: 0 | I107: 0 | J107: 0 | K107: 0 | L107: F | M107: Serviço | N107: Serviço | O107: 1.4.2.0.2. | P107: SINAPI | Q107: 91834 | R107: ELETRODUTO FLEXÍVEL CORRUGADO, PVC, DN 25 MM (3/4"), PARA CIRCUITOS TERMINAIS, INSTALADO EM FORRO - FORNECIMENTO E INSTALAÇÃO. AF_12/2015 | S107: M | T107: 340 | X107: Referência: AGETOP - 71194
A108: S | B108: 3 | C108: S | D108: 0 | E108: 1 | F108: 4 | G108: 2 | H108: 0 | I108: 0 | J108: 0 | K108: 0 | L108: F | M108: Serviço | N108: Serviço | O108: 1.4.2.0.3. | P108: SINAPI | Q108: 97891 | R108: CAIXA ENTERRADA ELÉTRICA RETANGULAR, EM ALVENARIA COM BLOCOS DE CONCRETO, FUNDO COM BRITA, DIMENSÕES INTERNAS: 0,4X0,4X0,4 M. AF_05/2018 | S108: UN | T108: 4
A109: S | B109: 3 | C109: S | D109: 0 | E109: 1 | F109: 4 | G109: 2 | H109: 0 | I109: 0 | J109: 0 | K109: 0 | L109: F | M109: Serviço | N109: Serviço | O109: 1.4.2.0.4. | P109: SINAPI | Q109: 91929 | R109: CABO DE COBRE FLEXÍVEL ISOLADO, 4 MM², ANTI-CHAMA 0,6/1,0 KV, PARA CIRCUITOS TERMINAIS - FORNECIMENTO E INSTALAÇÃO. AF_12/2015 | S109: M | T109: 400 | X109: Referência: AGETOP - 70582
A110: S | B110: 3 | C110: S | D110: 0 | E110: 1 | F110: 4 | G110: 2 | H110: 0 | I110: 0 | J110: 0 | K110: 0 | L110: F | M110: Serviço | N110: Serviço | O110: 1.4.2.0.5. | P110: SINAPI | Q110: 91926 | R110: CABO DE COBRE FLEXÍVEL ISOLADO, 2,5 MM², ANTI-CHAMA 450/750 V, PARA CIRCUITOS TERMINAIS - FORNECIMENTO E INSTALAÇÃO. AF_12/2015 | S110: M | T110: 1050 | X110: Referência: AGETOP - 70563
A111: S | B111: 3 | C111: S | D111: 0 | E111: 1 | F111: 4 | G111: 2 | H111: 0 | I111: 0 | J111: 0 | K111: 0 | L111: F | M111: Serviço | N111: Serviço | O111: 1.4.2.0.6. | P111: SINAPI | Q111: 93670 | R111: DISJUNTOR TRIPOLAR TIPO DIN, CORRENTE NOMINAL DE 25A - FORNECIMENTO E INSTALAÇÃO. AF_04/2016 | S111: UN | T111: 1 | X111: Referência: AGETOP - 71173
A112: S | B112: 3 | C112: S | D112: 0 | E112: 1 | F112: 4 | G112: 2 | H112: 0 | I112: 0 | J112: 0 | K112: 0 | L112: F | M112: Serviço | N112: Serviço | O112: 1.4.2.0.7. | P112: SINAPI | Q112: 83463 | R112: QUADRO DE DISTRIBUICAO DE ENERGIA EM CHAPA DE ACO GALVANIZADO, PARA 12 DISJUNTORES TERMOMAGNETICOS MONOPOLARES, COM BARRAMENTO TRIFASICO E NEUTRO - FORNECIMENTO E INSTALACAO | S112: UN | T112: 1
A113: S | B113: 3 | C113: S | D113: 0 | E113: 1 | F113: 4 | G113: 2 | H113: 0 | I113: 0 | J113: 0 | K113: 0 | L113: F | M113: Serviço | N113: Serviço | O113: 1.4.2.0.8. | P113: AGETOP | Q113: 70561 | R113: CABO ISOLADO PP 3 X 2,5 MM2 | S113: M | T113: 230
A114: 3 | B114: 3 | C114: 3 | D114: 42 | E114: 1 | F114: 4 | G114: 3 | H114: 0 | I114: 0 | J114: 104 | K114: 42 | L114: F | M114: Nível 3 | N114: Nível 3 | O114: 1.4.3. | P114: SINAPI | R114: REFORMA ELÉTRICA | S114: -
A115: S | B115: 3 | C115: S | D115: 0 | E115: 1 | F115: 4 | G115: 3 | H115: 0 | I115: 0 | J115: 0 | K115: 0 | L115: F | M115: Serviço | N115: Serviço | O115: 1.4.3.0.1. | P115: SINAPI | Q115: 83463 | R115: QUADRO DE DISTRIBUICAO DE ENERGIA EM CHAPA DE ACO GALVANIZADO, PARA 12 DISJUNTORES TERMOMAGNETICOS MONOPOLARES, COM BARRAMENTO TRIFASICO E NEUTRO - FORNECIMENTO E INSTALACAO | S115: UN | T115: 2
A116: S | B116: 3 | C116: S | D116: 0 | E116: 1 | F116: 4 | G116: 3 | H116: 0 | I116: 0 | J116: 0 | K116: 0 | L116: F | M116: Serviço | N116: Serviço | O116: 1.4.3.0.2. | P116: SINAPI | Q116: 74131/4 | R116: QUADRO DE DISTRIBUICAO DE ENERGIA DE EMBUTIR, EM CHAPA METALICA, PARA 18 DISJUNTORES TERMOMAGNETICOS MONOPOLARES, COM BARRAMENTO TRIFASICO E NEUTRO, FORNECIMENTO E INSTALACAO | S116: UN | T116: 3
A117: S | B117: 3 | C117: S | D117: 0 | E117: 1 | F117: 4 | G117: 3 | H117: 0 | I117: 0 | J117: 0 | K117: 0 | L117: F | M117: Serviço | N117: Serviço | O117: 1.4.3.0.3. | P117: SINAPI | Q117: 74131/5 | R117: QUADRO DE DISTRIBUICAO DE ENERGIA DE EMBUTIR, EM CHAPA METALICA, PARA 24 DISJUNTORES TERMOMAGNETICOS MONOPOLARES, COM BARRAMENTO TRIFASICO E NEUTRO, FORNECIMENTO E INSTALACAO | S117: UN | T117: 1
A118: S | B118: 3 | C118: S | D118: 0 | E118: 1 | F118: 4 | G118: 3 | H118: 0 | I118: 0 | J118: 0 | K118: 0 | L118: F | M118: Serviço | N118: Serviço | O118: 1.4.3.0.4. | P118: AGETOP | Q118: 71175 | R118: DISJUNTOR TRIPOLAR DE 60 A 100-A | S118: Un | T118: 1
A119: S | B119: 3 | C119: S | D119: 0 | E119: 1 | F119: 4 | G119: 3 | H119: 0 | I119: 0 | J119: 0 | K119: 0 | L119: F | M119: Serviço | N119: Serviço | O119: 1.4.3.0.5. | P119: SINAPI | Q119: 93673 | R119: DISJUNTOR TRIPOLAR TIPO DIN, CORRENTE NOMINAL DE 50A - FORNECIMENTO E INSTALAÇÃO. AF_04/2016 | S119: UN | T119: 3 | X119: Referência: AGETOP - 71174
A120: S | B120: 3 | C120: S | D120: 0 | E120: 1 | F120: 4 | G120: 3 | H120: 0 | I120: 0 | J120: 0 | K120: 0 | L120: F | M120: Serviço | N120: Serviço | O120: 1.4.3.0.6. | P120: SINAPI | Q120: 93672 | R120: DISJUNTOR TRIPOLAR TIPO DIN, CORRENTE NOMINAL DE 40A - FORNECIMENTO E INSTALAÇÃO. AF_04/2016 | S120: UN | T120: 1 | X120: Referência: AGETOP - 71174
A121: S | B121: 3 | C121: S | D121: 0 | E121: 1 | F121: 4 | G121: 3 | H121: 0 | I121: 0 | J121: 0 | K121: 0 | L121: F | M121: Serviço | N121: Serviço | O121: 1.4.3.0.7. | P121: SINAPI | Q121: 93670 | R121: DISJUNTOR TRIPOLAR TIPO DIN, CORRENTE NOMINAL DE 25A - FORNECIMENTO E INSTALAÇÃO. AF_04/2016 | S121: UN | T121: 2 | X121: Referência: AGETOP - 71173
A122: S | B122: 3 | C122: S | D122: 0 | E122: 1 | F122: 4 | G122: 3 | H122: 0 | I122: 0 | J122: 0 | K122: 0 | L122: F | M122: Serviço | N122: Serviço | O122: 1.4.3.0.8. | P122: AGETOP | Q122: 71450 | R122: INTERRUPTOR DIFERENCIAL RESIDUAL (D.R.) BIPOLAR DE 25A-30mA | S122: Un | T122: 3
A123: S | B123: 3 | C123: S | D123: 0 | E123: 1 | F123: 4 | G123: 3 | H123: 0 | I123: 0 | J123: 0 | K123: 0 | L123: F | M123: Serviço | N123: Serviço | O123: 1.4.3.0.9. | P123: SINAPI | Q123: 91926 | R123: CABO DE COBRE FLEXÍVEL ISOLADO, 2,5 MM², ANTI-CHAMA 450/750 V, PARA CIRCUITOS TERMINAIS - FORNECIMENTO E INSTALAÇÃO. AF_12/2015 | S123: M | T123: 4951 | X123: Referência: AGETOP - 70563
A124: S | B124: 3 | C124: S | D124: 0 | E124: 1 | F124: 4 | G124: 3 | H124: 0 | I124: 0 | J124: 0 | K124: 0 | L124: F | M124: Serviço | N124: Serviço | O124: 1.4.3.0.10. | P124: SINAPI | Q124: 91928 | R124: CABO DE COBRE FLEXÍVEL ISOLADO, 4 MM², ANTI-CHAMA 450/750 V, PARA CIRCUITOS TERMINAIS - FORNECIMENTO E INSTALAÇÃO. AF_12/2015 | S124: M | T124: 2208 | X124: Referência: AGETOP - 70564
A125: S | B125: 3 | C125: S | D125: 0 | E125: 1 | F125: 4 | G125: 3 | H125: 0 | I125: 0 | J125: 0 | K125: 0 | L125: F | M125: Serviço | N125: Serviço | O125: 1.4.3.0.11. | P125: SINAPI | Q125: 91930 | R125: CABO DE COBRE FLEXÍVEL ISOLADO, 6 MM², ANTI-CHAMA 450/750 V, PARA CIRCUITOS TERMINAIS - FORNECIMENTO E INSTALAÇÃO. AF_12/2015 | S125: M | T125: 10 | X125: Referência: AGETOP - 70565
A126: S | B126: 3 | C126: S | D126: 0 | E126: 1 | F126: 4 | G126: 3 | H126: 0 | I126: 0 | J126: 0 | K126: 0 | L126: F | M126: Serviço | N126: Serviço | O126: 1.4.3.0.12. | P126: SINAPI | Q126: 92979 | R126: CABO DE COBRE FLEXÍVEL ISOLADO, 10 MM², ANTI-CHAMA 450/750 V, PARA DISTRIBUIÇÃO - FORNECIMENTO E INSTALAÇÃO. AF_12/2015 | S126: M | T126: 743
A127: S | B127: 3 | C127: S | D127: 0 | E127: 1 | F127: 4 | G127: 3 | H127: 0 | I127: 0 | J127: 0 | K127: 0 | L127: F | M127: Serviço | N127: Serviço | O127: 1.4.3.0.13. | P127: SINAPI | Q127: 92981 | R127: CABO DE COBRE FLEXÍVEL ISOLADO, 16 MM², ANTI-CHAMA 450/750 V, PARA DISTRIBUIÇÃO - FORNECIMENTO E INSTALAÇÃO. AF_12/2015 | S127: M | T127: 17
A128: S | B128: 3 | C128: S | D128: 0 | E128: 1 | F128: 4 | G128: 3 | H128: 0 | I128: 0 | J128: 0 | K128: 0 | L128: F | M128: Serviço | N128: Serviço | O128: 1.4.3.0.14. | P128: SINAPI | Q128: 93010 | R128: ELETRODUTO RÍGIDO ROSCÁVEL, PVC, DN 75 MM (2 1/2") - FORNECIMENTO E INSTALAÇÃO. AF_12/2015 | S128: M | T128: 102.3
A129: S | B129: 3 | C129: S | D129: 0 | E129: 1 | F129: 4 | G129: 3 | H129: 0 | I129: 0 | J129: 0 | K129: 0 | L129: F | M129: Serviço | N129: Serviço | O129: 1.4.3.0.15. | P129: SINAPI | Q129: 93009 | R129: ELETRODUTO RÍGIDO ROSCÁVEL, PVC, DN 60 MM (2") - FORNECIMENTO E INSTALAÇÃO. AF_12/2015 | S129: M | T129: 3.5
A130: S | B130: 3 | C130: S | D130: 0 | E130: 1 | F130: 4 | G130: 3 | H130: 0 | I130: 0 | J130: 0 | K130: 0 | L130: F | M130: Serviço | N130: Serviço | O130: 1.4.3.0.16. | P130: SINAPI | Q130: 93008 | R130: ELETRODUTO RÍGIDO ROSCÁVEL, PVC, DN 50 MM (1 1/2") - FORNECIMENTO E INSTALAÇÃO. AF_12/2015 | S130: M | T130: 119.79
A131: S | B131: 3 | C131: S | D131: 0 | E131: 1 | F131: 4 | G131: 3 | H131: 0 | I131: 0 | J131: 0 | K131: 0 | L131: F | M131: Serviço | N131: Serviço | O131: 1.4.3.0.17. | P131: SINAPI | Q131: 91872 | R131: ELETRODUTO RÍGIDO ROSCÁVEL, PVC, DN 32 MM (1"), PARA CIRCUITOS TERMINAIS, INSTALADO EM PAREDE - FORNECIMENTO E INSTALAÇÃO. AF_12/2015 | S131: M | T131: 94.9 | X131: Referência: AGETOP - 71202
A132: S | B132: 3 | C132: S | D132: 0 | E132: 1 | F132: 4 | G132: 3 | H132: 0 | I132: 0 | J132: 0 | K132: 0 | L132: F | M132: Serviço | N132: Serviço | O132: 1.4.3.0.18. | P132: SINAPI | Q132: 91871 | R132: ELETRODUTO RÍGIDO ROSCÁVEL, PVC, DN 25 MM (3/4"), PARA CIRCUITOS TERMINAIS, INSTALADO EM PAREDE - FORNECIMENTO E INSTALAÇÃO. AF_12/2015 | S132: M | T132: 750.84 | X132: Referência: AGETOP - 71201
A133: S | B133: 3 | C133: S | D133: 0 | E133: 1 | F133: 4 | G133: 3 | H133: 0 | I133: 0 | J133: 0 | K133: 0 | L133: F | M133: Serviço | N133: Serviço | O133: 1.4.3.0.19. | P133: SINAPI | Q133: 93015 | R133: LUVA PARA ELETRODUTO, PVC, ROSCÁVEL, DN 75 MM (2 1/2") - FORNECIMENTO E INSTALAÇÃO. AF_12/2015 | S133: UN | T133: 34
A134: S | B134: 3 | C134: S | D134: 0 | E134: 1 | F134: 4 | G134: 3 | H134: 0 | I134: 0 | J134: 0 | K134: 0 | L134: F | M134: Serviço | N134: Serviço | O134: 1.4.3.0.20. | P134: SINAPI | Q134: 93014 | R134: LUVA PARA ELETRODUTO, PVC, ROSCÁVEL, DN 60 MM (2") - FORNECIMENTO E INSTALAÇÃO. AF_12/2015 | S134: UN | T134: 2 | X134: Referência: AGETOP - 71745
A135: S | B135: 3 | C135: S | D135: 0 | E135: 1 | F135: 4 | G135: 3 | H135: 0 | I135: 0 | J135: 0 | K135: 0 | L135: F | M135: Serviço | N135: Serviço | O135: 1.4.3.0.21. | P135: SINAPI | Q135: 93013 | R135: LUVA PARA ELETRODUTO, PVC, ROSCÁVEL, DN 50 MM (1 1/2") - FORNECIMENTO E INSTALAÇÃO. AF_12/2015 | S135: UN | T135: 40 | X135: Referência: AGETOP - 71744
A136: S | B136: 3 | C136: S | D136: 0 | E136: 1 | F136: 4 | G136: 3 | H136: 0 | I136: 0 | J136: 0 | K136: 0 | L136: F | M136: Serviço | N136: Serviço | O136: 1.4.3.0.22. | P136: SINAPI | Q136: 91885 | R136: LUVA PARA ELETRODUTO, PVC, ROSCÁVEL, DN 32 MM (1"), PARA CIRCUITOS TERMINAIS, INSTALADA EM PAREDE - FORNECIMENTO E INSTALAÇÃO. AF_12/2015 | S136: UN | T136: 32 | X136: Referência: AGETOP - 71742
A137: S | B137: 3 | C137: S | D137: 0 | E137: 1 | F137: 4 | G137: 3 | H137: 0 | I137: 0 | J137: 0 | K137: 0 | L137: F | M137: Serviço | N137: Serviço | O137: 1.4.3.0.23. | P137: SINAPI | Q137: 91884 | R137: LUVA PARA ELETRODUTO, PVC, ROSCÁVEL, DN 25 MM (3/4"), PARA CIRCUITOS TERMINAIS, INSTALADA EM PAREDE - FORNECIMENTO E INSTALAÇÃO. AF_12/2015 | S137: UN | T137: 150 | X137: Referência: AGETOP - 71741
A138: S | B138: 3 | C138: S | D138: 0 | E138: 1 | F138: 4 | G138: 3 | H138: 0 | I138: 0 | J138: 0 | K138: 0 | L138: F | M138: Serviço | N138: Serviço | O138: 1.4.3.0.24. | P138: AGETOP | Q138: 70375 | R138: BRACADEIRA METALICA TIPO "D" DIAM. 2" | S138: Un | T138: 34
A139: S | B139: 3 | C139: S | D139: 0 | E139: 1 | F139: 4 | G139: 3 | H139: 0 | I139: 0 | J139: 0 | K139: 0 | L139: F | M139: Serviço | N139: Serviço | O139: 1.4.3.0.25. | P139: AGETOP | Q139: 70376 | R139: BRACADEIRA METALICA TIPO "D" DIAM. 2.1/2" | S139: Un | T139: 2
A140: S | B140: 3 | C140: S | D140: 0 | E140: 1 | F140: 4 | G140: 3 | H140: 0 | I140: 0 | J140: 0 | K140: 0 | L140: F | M140: Serviço | N140: Serviço | O140: 1.4.3.0.26. | P140: AGETOP | Q140: 70372 | R140: BRACADEIRA METALICA TIPO "D" DIAM. 1" | S140: Un | T140: 40
A141: S | B141: 3 | C141: S | D141: 0 | E141: 1 | F141: 4 | G141: 3 | H141: 0 | I141: 0 | J141: 0 | K141: 0 | L141: F | M141: Serviço | N141: Serviço | O141: 1.4.3.0.27. | P141: AGETOP | Q141: 70370 | R141: BRACADEIRA METALICA TIPO "D" DIAM. 1/2" | S141: Un | T141: 32
A142: S | B142: 3 | C142: S | D142: 0 | E142: 1 | F142: 4 | G142: 3 | H142: 0 | I142: 0 | J142: 0 | K142: 0 | L142: F | M142: Serviço | N142: Serviço | O142: 1.4.3.0.28. | P142: AGETOP | Q142: 70371 | R142: BRACADEIRA METALICA TIPO "D" DIAM. 3/4" | S142: Un | T142: 150
A143: S | B143: 3 | C143: S | D143: 0 | E143: 1 | F143: 4 | G143: 3 | H143: 0 | I143: 0 | J143: 0 | K143: 0 | L143: F | M143: Serviço | N143: Serviço | O143: 1.4.3.0.29. | P143: AGETOP | Q143: 70391 | R143: BUCHA DE NYLON S-6 | S143: Un | T143: 1032
A144: S | B144: 3 | C144: S | D144: 0 | E144: 1 | F144: 4 | G144: 3 | H144: 0 | I144: 0 | J144: 0 | K144: 0 | L144: F | M144: Serviço | N144: Serviço | O144: 1.4.3.0.30. | P144: AGETOP | Q144: 71861 | R144: PARAFUSO P/BUCHA S-6 | S144: Un | T144: 1032
A145: S | B145: 3 | C145: S | D145: 0 | E145: 1 | F145: 4 | G145: 3 | H145: 0 | I145: 0 | J145: 0 | K145: 0 | L145: F | M145: Serviço | N145: Serviço | O145: 1.4.3.0.31. | P145: SINAPI | Q145: 97585 | R145: LUMINÁRIA TIPO CALHA, DE SOBREPOR, COM 2 LÂMPADAS TUBULARES DE 18 W - FORNECIMENTO E INSTALAÇÃO. AF_11/2017 | S145: UN | T145: 215
A146: S | B146: 3 | C146: S | D146: 0 | E146: 1 | F146: 4 | G146: 3 | H146: 0 | I146: 0 | J146: 0 | K146: 0 | L146: F | M146: Serviço | N146: Serviço | O146: 1.4.3.0.32. | P146: SINAPI | Q146: 97593 | R146: LUMINÁRIA TIPO SPOT, DE SOBREPOR, COM 1 LÂMPADA DE 15 W - FORNECIMENTO E INSTALAÇÃO. AF_11/2017 | S146: UN | T146: 70 | X146: Referência: AGETOP - 71688
A147: S | B147: 3 | C147: S | D147: 0 | E147: 1 | F147: 4 | G147: 3 | H147: 0 | I147: 0 | J147: =IF(OR($C147="S",$C147=0),0,MATCH(0,OFFSET($D147,1,$C147,ROW($C$742)-ROW($C147)),0)) -> 0 | K147: =IF(OR($C147="S",$C147=0),0,MATCH(OFFSET($D147,0,$C147)+1,OFFSET($D147,1,$C147,ROW($C$742)-ROW($C147)),0)) -> 0 | L147: F | M147: Serviço | N147: Serviço | O147: 1.4.3.0.33. | P147: SINAPI | Q147: 97610 | R147: LÂMPADA COMPACTA DE LED 10 W, BASE E27 - FORNECIMENTO E INSTALAÇÃO. AF_11/2017 | S147: UN | T147: 70
A148: S | B148: 3 | C148: S | D148: 0 | E148: 1 | F148: 4 | G148: 3 | H148: 0 | I148: 0 | J148: 0 | K148: 0 | L148: F | M148: Serviço | N148: Serviço | O148: 1.4.3.0.34. | P148: SINAPI | Q148: 91953 | R148: INTERRUPTOR SIMPLES (1 MÓDULO), 10A/250V, INCLUINDO SUPORTE E PLACA - FORNECIMENTO E INSTALAÇÃO. AF_12/2015 | S148: UN | T148: 45 | X148: Referência: AGETOP - 71440
A149: S | B149: 3 | C149: S | D149: 0 | E149: 1 | F149: 4 | G149: 3 | H149: 0 | I149: 0 | J149: 0 | K149: 0 | L149: F | M149: Serviço | N149: Serviço | O149: 1.4.3.0.35. | P149: SINAPI | Q149: 91959 | R149: INTERRUPTOR SIMPLES (2 MÓDULOS), 10A/250V, INCLUINDO SUPORTE E PLACA - FORNECIMENTO E INSTALAÇÃO. AF_12/2015 | S149: UN | T149: 3 | X149: Referência: AGETOP - 71441
A150: S | B150: 3 | C150: S | D150: 0 | E150: 1 | F150: 4 | G150: 3 | H150: 0 | I150: 0 | J150: 0 | K150: 0 | L150: F | M150: Serviço | N150: Serviço | O150: 1.4.3.0.36. | P150: SINAPI | Q150: 92865 | R150: CAIXA OCTOGONAL 4" X 4", METÁLICA, INSTALADA EM LAJE - FORNECIMENTO E INSTALAÇÃO. AF_12/2015 | S150: UN | T150: 48 | X150: Referência: AGETOP - 70682
A151: S | B151: 3 | C151: S | D151: 0 | E151: 1 | F151: 4 | G151: 3 | H151: 0 | I151: 0 | J151: 0 | K151: 0 | L151: F | M151: Serviço | N151: Serviço | O151: 1.4.3.0.37. | P151: AGETOP | Q151: 71331 | R151: FITA ISOLANTE, ROLO DE 20,00 M | S151: Un | T151: 8
A152: S | B152: 3 | C152: S | D152: 0 | E152: 1 | F152: 4 | G152: 3 | H152: 0 | I152: 0 | J152: 0 | K152: 0 | L152: F | M152: Serviço | N152: Serviço | O152: 1.4.3.0.38. | P152: SINAPI | Q152: 74246/1 | R152: REFLETOR RETANGULAR FECHADO COM LAMPADA VAPOR METALICO 400 W | S152: UN | T152: 16 | X152: Referência: AGETOP - 71684
A153: S | B153: 3 | C153: S | D153: 0 | E153: 1 | F153: 4 | G153: 3 | H153: 0 | I153: 0 | J153: 0 | K153: 0 | L153: F | M153: Serviço | N153: Serviço | O153: 1.4.3.0.39. | P153: SINAPI | Q153: 92008 | R153: TOMADA BAIXA DE EMBUTIR (2 MÓDULOS), 2P+T 10 A, INCLUINDO SUPORTE E PLACA - FORNECIMENTO E INSTALAÇÃO. AF_12/2015 | S153: UN | T153: 52
A154: S | B154: 3 | C154: S | D154: 0 | E154: 1 | F154: 4 | G154: 3 | H154: 0 | I154: 0 | J154: 0 | K154: 0 | L154: F | M154: Serviço | N154: Serviço | O154: 1.4.3.0.40. | P154: SINAPI | Q154: 91993 | R154: TOMADA ALTA DE EMBUTIR (1 MÓDULO), 2P+T 20 A, INCLUINDO SUPORTE E PLACA - FORNECIMENTO E INSTALAÇÃO. AF_12/2015 | S154: UN | T154: 25 | X154: Referência: AGETOP - 72585
A155: S | B155: 3 | C155: S | D155: 0 | E155: 1 | F155: 4 | G155: 3 | H155: 0 | I155: 0 | J155: 0 | K155: 0 | L155: F | M155: Serviço | N155: Serviço | O155: 1.4.3.0.41. | P155: SINAPI | Q155: 92865 | R155: CAIXA OCTOGONAL 4" X 4", METÁLICA, INSTALADA EM LAJE - FORNECIMENTO E INSTALAÇÃO. AF_12/2015 | S155: UN | T155: 77 | X155: Referência: AGETOP - 70682
A156: 3 | B156: 3 | C156: 3 | D156: 62 | E156: 1 | F156: 4 | G156: 4 | H156: 0 | I156: 0 | J156: 62 | K156: 277 | L156: F | M156: Nível 3 | N156: Nível 3 | O156: 1.4.4. | P156: SINAPI | R156: SUBESTAÇÃO 112,5 KVA | S156: -
A157: S | B157: 3 | C157: S | D157: 0 | E157: 1 | F157: 4 | G157: 4 | H157: 0 | I157: 0 | J157: 0 | K157: 0 | L157: F | M157: Serviço | N157: Serviço | O157: 1.4.4.0.1. | P157: SINAPI | Q157: 73767/2 | R157: ALCA PRE-FORMADA DISTRIBUIÇÃO EM ACO RECOBERTO COM ALUMINIO PARA CABO 25MM2, ENCAPADO. FORNECIMENTO E INSTALAÇÃO. | S157: UN | T157: 1
A158: S | B158: 3 | C158: S | D158: 0 | E158: 1 | F158: 4 | G158: 4 | H158: 0 | I158: 0 | J158: 0 | K158: 0 | L158: F | M158: Serviço | N158: Serviço | O158: 1.4.4.0.2. | P158: AGETOP | Q158: 70252 | R158: ARRUELA LISA D=5/16" | S158: Un | T158: 8
A159: S | B159: 3 | C159: S | D159: 0 | E159: 1 | F159: 4 | G159: 4 | H159: 0 | I159: 0 | J159: 0 | K159: 0 | L159: F | M159: Serviço | N159: Serviço | O159: 1.4.4.0.3. | P159: AGETOP | Q159: 70268 | R159: BARRA DE COBRE 2" X 3/16" (2,0865 KG/M) | S159: m | T159: 1.5
A160: S | B160: 3 | C160: S | D160: 0 | E160: 1 | F160: 4 | G160: 4 | H160: 0 | I160: 0 | J160: 0 | K160: 0 | L160: F | M160: Serviço | N160: Serviço | O160: 1.4.4.0.4. | P160: SINAPI | Q160: 91175 | R160: FIXAÇÃO DE TUBOS VERTICAIS DE PPR DIÂMETROS MAIORES QUE 75 MM COM ABRAÇADEIRA METÁLICA RÍGIDA TIPO D 3", FIXADA EM PERFILADO EM ALVENARIA. AF_05/2015 | S160: M | T160: 6
A161: S | B161: 3 | C161: S | D161: 0 | E161: 1 | F161: 4 | G161: 4 | H161: 0 | I161: 0 | J161: 0 | K161: 0 | L161: F | M161: Serviço | N161: Serviço | O161: 1.4.4.0.5. | P161: AGETOP | Q161: 70386 | R161: BRAÇO C AÇO GALVANIZADO , CONFORME NTD-17 | S161: un | T161: 1
A162: S | B162: 3 | C162: S | D162: 0 | E162: 1 | F162: 4 | G162: 4 | H162: 0 | I162: 0 | J162: 0 | K162: 0 | L162: F | M162: Serviço | N162: Serviço | O162: 1.4.4.0.6. | P162: AGETOP | Q162: 70422 | R162: BUCHA E ARRUELA METALICA DIAM. 1" | S162: PR | T162: 2
A163: S | B163: 3 | C163: S | D163: 0 | E163: 1 | F163: 4 | G163: 4 | H163: 0 | I163: 0 | J163: 0 | K163: 0 | L163: F | M163: Serviço | N163: Serviço | O163: 1.4.4.0.7. | P163: AGETOP | Q163: 70426 | R163: BUCHA E ARRUELA METALICA DIAM. 2.1/2" | S163: PR | T163: 1
A164: S | B164: 3 | C164: S | D164: 0 | E164: 1 | F164: 4 | G164: 4 | H164: 0 | I164: 0 | J164: 0 | K164: 0 | L164: F | M164: Serviço | N164: Serviço | O164: 1.4.4.0.8. | P164: SINAPI | Q164: 92986 | R164: CABO DE COBRE FLEXÍVEL ISOLADO, 35 MM², ANTI-CHAMA 0,6/1,0 KV, PARA DISTRIBUIÇÃO - FORNECIMENTO E INSTALAÇÃO. AF_12/2015 | S164: M | T164: 83.61 | X164: Referência: AGETOP - 70512
A165: S | B165: 3 | C165: S | D165: 0 | E165: 1 | F165: 4 | G165: 4 | H165: 0 | I165: 0 | J165: 0 | K165: 0 | L165: F | M165: Serviço | N165: Serviço | O165: 1.4.4.0.9. | P165: SINAPI | Q165: 92990 | R165: CABO DE COBRE FLEXÍVEL ISOLADO, 70 MM², ANTI-CHAMA 0,6/1,0 KV, PARA DISTRIBUIÇÃO - FORNECIMENTO E INSTALAÇÃO. AF_12/2015 | S165: M | T165: 335 | X165: Referência: AGETOP - 70514
A166: S | B166: 3 | C166: S | D166: 0 | E166: 1 | F166: 4 | G166: 4 | H166: 0 | I166: 0 | J166: 0 | K166: 0 | L166: F | M166: Serviço | N166: Serviço | O166: 1.4.4.0.10. | P166: AGETOP | Q166: 70543 | R166: CABO DE COBRE NÚ No. 35 MM2 | S166: M | T166: 3
A167: S | B167: 3 | C167: S | D167: 0 | E167: 1 | F167: 4 | G167: 4 | H167: 0 | I167: 0 | J167: 0 | K167: 0 | L167: F | M167: Serviço | N167: Serviço | O167: 1.4.4.0.11. | P167: SINAPI | Q167: 96977 | R167: CORDOALHA DE COBRE NU 50 MM², ENTERRADA, SEM ISOLADOR - FORNECIMENTO E INSTALAÇÃO. AF_12/2017 | S167: M | T167: 45
A168: S | B168: 3 | C168: S | D168: 0 | E168: 1 | F168: 4 | G168: 4 | H168: 0 | I168: 0 | J168: 0 | K168: 0 | L168: F | M168: Serviço | N168: Serviço | O168: 1.4.4.0.12. | P168: AGETOP | Q168: 70695 | R168: CAIXA METÁLICA PARA PROTEÇÃO GERAL 580X500X216MM ATÉ 175A | S168: Un | T168: 1
A169: S | B169: 3 | C169: S | D169: 0 | E169: 1 | F169: 4 | G169: 4 | H169: 0 | I169: 0 | J169: 0 | K169: 0 | L169: F | M169: Serviço | N169: Serviço | O169: 1.4.4.0.13. | P169: AGETOP | Q169: 70725 | R169: CAIXA METÁLICA PARA T.C. 580X500X216MM - ATÉ 175A | S169: Un | T169: 1
A170: S | B170: 3 | C170: S | D170: 0 | E170: 1 | F170: 4 | G170: 4 | H170: 0 | I170: 0 | J170: 0 | K170: 0 | L170: F | M170: Serviço | N170: Serviço | O170: 1.4.4.0.14. | P170: SINAPI | Q170: 97893 | R170: CAIXA ENTERRADA ELÉTRICA RETANGULAR, EM ALVENARIA COM BLOCOS DE CONCRETO, FUNDO COM BRITA, DIMENSÕES INTERNAS: 0,8X0,8X0,6 M. AF_05/2018 | S170: UN | T170: 2
A171: S | B171: 3 | C171: S | D171: 0 | E171: 1 | F171: 4 | G171: 4 | H171: 0 | I171: 0 | J171: 0 | K171: 0 | L171: F | M171: Serviço | N171: Serviço | O171: 1.4.4.0.15. | P171: AGETOP | Q171: 70771 | R171: CANTONEIRA AUXILIAR PARA BRAÇO TIPO C | S171: un | T171: 1
A172: S | B172: 3 | C172: S | D172: 0 | E172: 1 | F172: 4 | G172: 4 | H172: 0 | I172: 0 | J172: 0 | K172: 0 | L172: F | M172: Serviço | N172: Serviço | O172: 1.4.4.0.16. | P172: AGETOP | Q172: 70920 | R172: CINTA DE ACO GALVANIZADO DIAM.190 MM | S172: Un | T172: 1
A173: S | B173: 3 | C173: S | D173: 0 | E173: 1 | F173: 4 | G173: 4 | H173: 0 | I173: 0 | J173: 0 | K173: 0 | L173: F | M173: Serviço | N173: Serviço | O173: 1.4.4.0.17. | P173: AGETOP | Q173: 70921 | R173: CINTA DE ACO GALVANIZADO DIAM.220 MM | S173: Un | T173: 2
A174: S | B174: 3 | C174: S | D174: 0 | E174: 1 | F174: 4 | G174: 4 | H174: 0 | I174: 0 | J174: 0 | K174: 0 | L174: F | M174: Serviço | N174: Serviço | O174: 1.4.4.0.18. | P174: AGETOP | Q174: 70922 | R174: CINTA DE ACO GALVANIZADO DIAM.230MM | S174: Un | T174: 2
A175: S | B175: 3 | C175: S | D175: 0 | E175: 1 | F175: 4 | G175: 4 | H175: 0 | I175: 0 | J175: 0 | K175: 0 | L175: F | M175: Serviço | N175: Serviço | O175: 1.4.4.0.19. | P175: AGETOP | Q175: 71016 | R175: CONECTOR DE COMPRESSÃO FORMATO H PARA CABO 25 A 70 MM2 | S175: un | T175: 4
A176: S | B176: 3 | C176: S | D176: 0 | E176: 1 | F176: 4 | G176: 4 | H176: 0 | I176: 0 | J176: 0 | K176: 0 | L176: F | M176: Serviço | N176: Serviço | O176: 1.4.4.0.20. | P176: AGETOP | Q176: 71036 | R176: CONECTOR TIPO PARAFUSO FENDIDO 50 MM2 | S176: Un | T176: 6
A177: S | B177: 3 | C177: S | D177: 0 | E177: 1 | F177: 4 | G177: 4 | H177: 0 | I177: 0 | J177: 0 | K177: 0 | L177: F | M177: Serviço | N177: Serviço | O177: 1.4.4.0.21. | P177: SINAPI | Q177: 72272 | R177: CONECTOR PARAFUSO FENDIDO SPLIT-BOLT - PARA CABO DE 35MM2 - FORNECIMENTO E INSTALACAO | S177: UN | T177: 1
A178: S | B178: 3 | C178: S | D178: 0 | E178: 1 | F178: 4 | G178: 4 | H178: 0 | I178: 0 | J178: 0 | K178: 0 | L178: F | M178: Serviço | N178: Serviço | O178: 1.4.4.0.22. | P178: AGETOP | Q178: 71037 | R178: CONECTOR TIPO PARAFUSO FENDIDO 70 MM2 | S178: Un | T178: 4
A179: S | B179: 3 | C179: S | D179: 0 | E179: 1 | F179: 4 | G179: 4 | H179: 0 | I179: 0 | J179: 0 | K179: 0 | L179: F | M179: Serviço | N179: Serviço | O179: 1.4.4.0.23. | P179: AGETOP | Q179: 71142 | R179: CURVA DE 90 GRAUS DE PVC RIGIDO DIAM. 1" | S179: Un | T179: 1
A180: S | B180: 3 | C180: S | D180: 0 | E180: 1 | F180: 4 | G180: 4 | H180: 0 | I180: 0 | J180: 0 | K180: 0 | L180: F | M180: Serviço | N180: Serviço | O180: 1.4.4.0.24. | P180: SINAPI | Q180: 93022 | R180: CURVA 90 GRAUS PARA ELETRODUTO, PVC, ROSCÁVEL, DN 75 MM (2 1/2") - FORNECIMENTO E INSTALAÇÃO. AF_12/2015 | S180: UN | T180: 1
A181: S | B181: 3 | C181: S | D181: 0 | E181: 1 | F181: 4 | G181: 4 | H181: 0 | I181: 0 | J181: 0 | K181: 0 | L181: F | M181: Serviço | N181: Serviço | O181: 1.4.4.0.25. | P181: AGETOP | Q181: 71184 | R181: DISPOSITIVO DE PROTEÇÃO CONTRA SURTOS (D.P.S.) 275V DE 8 A 40KA | S181: Un | T181: 3
A182: S | B182: 3 | C182: S | D182: 0 | E182: 1 | F182: 4 | G182: 4 | H182: 0 | I182: 0 | J182: 0 | K182: 0 | L182: F | M182: Serviço | N182: Serviço | O182: 1.4.4.0.26. | P182: SINAPI | Q182: 74130/10 | R182: DISJUNTOR TERMOMAGNETICO TRIPOLAR EM CAIXA MOLDADA 175 A 225A 240V, FORNECIMENTO E INSTALACAO | S182: UN | T182: 2
A183: S | B183: 3 | C183: S | D183: 0 | E183: 1 | F183: 4 | G183: 4 | H183: 0 | I183: 0 | J183: 0 | K183: 0 | L183: F | M183: Serviço | N183: Serviço | O183: 1.4.4.0.27. | P183: AGETOP | Q183: 71202 | R183: ELETRODUTO DE PVC RIGIDO DIAMETRO 1" | S183: M | T183: 3
A184: S | B184: 3 | C184: S | D184: 0 | E184: 1 | F184: 4 | G184: 4 | H184: 0 | I184: 0 | J184: 0 | K184: 0 | L184: F | M184: Serviço | N184: Serviço | O184: 1.4.4.0.28. | P184: SINAPI | Q184: 93010 | R184: ELETRODUTO RÍGIDO ROSCÁVEL, PVC, DN 75 MM (2 1/2") - FORNECIMENTO E INSTALAÇÃO. AF_12/2015 | S184: M | T184: 3
A185: S | B185: 3 | C185: S | D185: 0 | E185: 1 | F185: 4 | G185: 4 | H185: 0 | I185: 0 | J185: 0 | K185: 0 | L185: F | M185: Serviço | N185: Serviço | O185: 1.4.4.0.29. | P185: AGETOP | Q185: 71216 | R185: ELETRODUTO EM AÇO GALVANIZADO A FOGO DIÂMETRO 2 1/2" - PESADO | S185: M | T185: 7
A186: S | B186: 3 | C186: S | D186: 0 | E186: 1 | F186: 4 | G186: 4 | H186: 0 | I186: 0 | J186: 0 | K186: 0 | L186: F | M186: Serviço | N186: Serviço | O186: 1.4.4.0.30. | P186: AGETOP | Q186: 71268 | R186: ELO FUSÍVEL 6 K | S186: Un | T186: 1
A187: S | B187: 3 | C187: S | D187: 0 | E187: 1 | F187: 4 | G187: 4 | H187: 0 | I187: 0 | J187: 0 | K187: 0 | L187: F | M187: Serviço | N187: Serviço | O187: 1.4.4.0.31. | P187: AGETOP | Q187: 71321 | R187: FITA DE AUTO FUSAO, ROLO E 10,00 MM | S187: Un | T187: 5
A188: S | B188: 3 | C188: S | D188: 0 | E188: 1 | F188: 4 | G188: 4 | H188: 0 | I188: 0 | J188: 0 | K188: 0 | L188: F | M188: Serviço | N188: Serviço | O188: 1.4.4.0.32. | P188: AGETOP | Q188: 71365 | R188: GRAMPO DE ANCORAGEM POLIMÉRICO | S188: un | T188: 3
A189: S | B189: 3 | C189: S | D189: 0 | E189: 1 | F189: 4 | G189: 4 | H189: 0 | I189: 0 | J189: 0 | K189: 0 | L189: F | M189: Serviço | N189: Serviço | O189: 1.4.4.0.33. | P189: AGETOP | Q189: 71381 | R189: HASTE REV.COBRE(COPPERWELD) 5/8" X 3,00 M C/CONECTOR | S189: Un | T189: 4
A190: S | B190: 3 | C190: S | D190: 0 | E190: 1 | F190: 4 | G190: 4 | H190: 0 | I190: 0 | J190: 0 | K190: 0 | L190: F | M190: Serviço | N190: Serviço | O190: 1.4.4.0.34. | P190: AGETOP | Q190: 71463 | R190: ISOLADOR EPOXI 50X40 (BUJAO) | S190: Un | T190: 2
A191: S | B191: 3 | C191: S | D191: 0 | E191: 1 | F191: 4 | G191: 4 | H191: 0 | I191: 0 | J191: 0 | K191: 0 | L191: F | M191: Serviço | N191: Serviço | O191: 1.4.4.0.35. | P191: AGETOP | Q191: 71476 | R191: ISOLADOR DE ANCORAGEM POLIMÉRICO 15KV | S191: un | T191: 1
A192: S | B192: 3 | C192: S | D192: 0 | E192: 1 | F192: 4 | G192: 4 | H192: 0 | I192: 0 | J192: 0 | K192: 0 | L192: F | M192: Serviço | N192: Serviço | O192: 1.4.4.0.36. | P192: AGETOP | Q192: 71510 | R192: LACO PREFORMADO DE DISTRIBUICAO | S192: Un | T192: 1
A193: S | B193: 3 | C193: S | D193: 0 | E193: 1 | F193: 4 | G193: 4 | H193: 0 | I193: 0 | J193: 0 | K193: 0 | L193: F | M193: Serviço | N193: Serviço | O193: 1.4.4.0.37. | P193: AGETOP | Q193: 71742 | R193: LUVA PVC ROSQUEAVEL DIAMETRO 1" | S193: Un | T193: 1
A194: S | B194: 3 | C194: S | D194: 0 | E194: 1 | F194: 4 | G194: 4 | H194: 0 | I194: 0 | J194: 0 | K194: 0 | L194: F | M194: Serviço | N194: Serviço | O194: 1.4.4.0.38. | P194: SINAPI | Q194: 93015 | R194: LUVA PARA ELETRODUTO, PVC, ROSCÁVEL, DN 75 MM (2 1/2") - FORNECIMENTO E INSTALAÇÃO. AF_12/2015 | S194: UN | T194: 1
A195: S | B195: 3 | C195: S | D195: 0 | E195: 1 | F195: 4 | G195: 4 | H195: 0 | I195: 0 | J195: 0 | K195: 0 | L195: F | M195: Serviço | N195: Serviço | O195: 1.4.4.0.39. | P195: AGETOP | Q195: 71706 | R195: LUVA EM AÇO GALVANIZADO DIÂMETRO 2.1/2" | S195: Un | T195: 2
A196: S | B196: 3 | C196: S | D196: 0 | E196: 1 | F196: 4 | G196: 4 | H196: 0 | I196: 0 | J196: 0 | K196: 0 | L196: F | M196: Serviço | N196: Serviço | O196: 1.4.4.0.40. | P196: AGETOP | Q196: 71750 | R196: MANILHA-SAPATILHA EM AÇO GALVANIZADO | S196: un | T196: 1
A197: S | B197: 3 | C197: S | D197: 0 | E197: 1 | F197: 4 | G197: 4 | H197: 0 | I197: 0 | J197: 0 | K197: 0 | L197: F | M197: Serviço | N197: Serviço | O197: 1.4.4.0.41. | P197: AGETOP | Q197: 71761 | R197: MURETA MEDIÇÃO ALVEN. 1 1/2 V.(35CM) REBOC.C/PINTURA ACRÍL. E LAJE CONC. 20MPA MALHA 8.0MM CADA 10CM REVEST.C/ARGAMASSA 1:3 C/ IMPERMEABILIZANTE | S197: m2 | T197: 4
A198: S | B198: 3 | C198: S | D198: 0 | E198: 1 | F198: 4 | G198: 4 | H198: 0 | I198: 0 | J198: 0 | K198: 0 | L198: F | M198: Serviço | N198: Serviço | O198: 1.4.4.0.42. | P198: AGETOP | Q198: 71791 | R198: NIPLE DUPLO FERRO GALVANIZADO 2" | S198: Un | T198: 1
A199: S | B199: 3 | C199: S | D199: 0 | E199: 1 | F199: 4 | G199: 4 | H199: 0 | I199: 0 | J199: 0 | K199: 0 | L199: F | M199: Serviço | N199: Serviço | O199: 1.4.4.0.43. | P199: AGETOP | Q199: 71776 | R199: NIPLE METALICO Fo.Zo. DIAMETRO 2.1/2" | S199: Un | T199: 1
A200: S | B200: 3 | C200: S | D200: 0 | E200: 1 | F200: 4 | G200: 4 | H200: 0 | I200: 0 | J200: 0 | K200: 0 | L200: F | M200: Serviço | N200: Serviço | O200: 1.4.4.0.44. | P200: AGETOP | Q200: 71795 | R200: OLHAL PARA PARAFUSO | S200: un | T200: 3
A201: S | B201: 3 | C201: S | D201: 0 | E201: 1 | F201: 4 | G201: 4 | H201: 0 | I201: 0 | J201: 0 | K201: 0 | L201: F | M201: Serviço | N201: Serviço | O201: 1.4.4.0.45. | P201: AGETOP | Q201: 71835 | R201: PARAFUSO CABEÇA ABAULADA (FRANCES) M16 X 45 MM | S201: Un | T201: 3
A202: S | B202: 3 | C202: S | D202: 0 | E202: 1 | F202: 4 | G202: 4 | H202: 0 | I202: 0 | J202: 0 | K202: 0 | L202: F | M202: Serviço | N202: Serviço | O202: 1.4.4.0.46. | P202: AGETOP | Q202: 71841 | R202: PARAFUSO CABEÇA ABAULADA (FRANCES) M16 X 150 MM | S202: Un | T202: 3
A203: S | B203: 3 | C203: S | D203: 0 | E203: 1 | F203: 4 | G203: 4 | H203: 0 | I203: 0 | J203: 0 | K203: 0 | L203: F | M203: Serviço | N203: Serviço | O203: 1.4.4.0.47. | P203: AGETOP | Q203: 71833 | R203: PARA RAIOS DISTRIBUIDOR POLIMÉRICO ÓXIDO DE ZINCO S/CENTELHADOR C/ DESLIGAMENTO AUTOMÁTICO 15KV,10KA | S203: Un | T203: 3
A204: S | B204: 3 | C204: S | D204: 0 | E204: 1 | F204: 4 | G204: 4 | H204: 0 | I204: 0 | J204: 0 | K204: 0 | L204: F | M204: Serviço | N204: Serviço | O204: 1.4.4.0.48. | P204: AGETOP | Q204: 71997 | R204: POSTE - FUNDAÇÃO EM CONCRETO SIMPLES DA BASE DOS POSTES 11/600 PARA TRAFO ( DIAM. 1000MM) | S204: m | T204: 0.3
A205: S | B205: 3 | C205: S | D205: 0 | E205: 1 | F205: 4 | G205: 4 | H205: 0 | I205: 0 | J205: 0 | K205: 0 | L205: F | M205: Serviço | N205: Serviço | O205: 1.4.4.0.49. | P205: AGETOP | Q205: 72061 | R205: POSTE DE CONCRETO SC 11/600 - SEM FUNDAÇÃO/CONCRETO | S205: Un | T205: 1
A206: S | B206: 3 | C206: S | D206: 0 | E206: 1 | F206: 4 | G206: 4 | H206: 0 | I206: 0 | J206: 0 | K206: 0 | L206: F | M206: Serviço | N206: Serviço | O206: 1.4.4.0.50. | P206: AGETOP | Q206: 72080 | R206: POSTE/TRAFO - CAMINHÃO MUNCK 12 TON. (MÍNIMO 4H/DIA) | S206: H | T206: 4
... 609 more rows

Sheet Resumo
B3: UNIDADE ESCOLAR | G3: CÓDIGO INEP
B4: =Orçamento!$O$4 -> CENTRO DE ENSINO EM PERÍODO INTEGRAL PROFESSOR JOAQUIM CARVALHO FERREIRA | G4: =Orçamento!V4 -> 52033589
B6: OBRA | G6: CIDADE
B7: =Orçamento!$O$7 -> REFORMA E AMPLIAÇÃO | G7: =Orçamento!$V$7 -> GOIÂNIA
B9: ENDEREÇO | G9: CRE
B10: =Orçamento!$R$10 -> AV FERNÃO DIAS PAES LEME S/Nº 32, CAPUAVA, CEP:74450-200 | G10: =Orçamento!$O$10 -> GOIÂNIA
B12: REFERÊNCIA | D12: DATA | G12: ÁREA TOTAL CONSTRUÍDA (M²)
B13: =CONCATENATE("AGETOP E SINAPI - ",Orçamento!$T$10) -> AGETOP E SINAPI - DESONERADA | D13: =Orçamento!$S$7 -> 2020-03-25 | G13: =Orçamento!$V$13 -> 2969.63
A14: FILTRO
B15: RESUMO GERAL DO ORÇAMENTO
A16: ↓ | B16: ITEM | C16: DESCRIÇÃO DOS SERVIÇOS | E16: UNID | F16: QUANT | G16: PREÇO SEM BDI | H16: PREÇO COM BDI | I16: PARTICIP. (%)
A17: =IF(E17>0,"F","") -> F | B17: 1. | C17: =Orçamento!$P795 -> REFORMA | E17: UN | F17: 1 | G17: =IFERROR(Orçamento!S795,"-") -> 0 | H17: =IFERROR(Orçamento!V795,"") -> 0 | I17: =Orçamento!X795 -> 
A18: =IF(E18>0,"F","") -> F | B18: 2. | C18: =Orçamento!$P796 -> COZINHA / REFEITORIO PADRÃO 2009 MODIFICADO | E18: UN | F18: 1 | G18: =IFERROR(Orçamento!S796,"-") -> 0 | H18: =IFERROR(Orçamento!V796,"") -> 0 | I18: =Orçamento!X796 -> 
A19: F | B19: 3. | C19: =Orçamento!$P797 -> PASSARELA M2 - SEC. XXI - REV. 2015 | E19: UN | F19: 1 | G19: =IFERROR(Orçamento!S797,"-") -> 0 | H19: =IFERROR(Orçamento!V797,"") -> 0 | I19: =Orçamento!X797 -> 
B20: 4. | C20: =Orçamento!$P798 ->  | G20: =IFERROR(Orçamento!S798,"-") -> 0 | H20: =IFERROR(Orçamento!V798,"") -> 0 | I20: =Orçamento!X798 -> 
B21: 5. | C21: =Orçamento!$P799 ->  | G21: =IFERROR(Orçamento!S799,"-") -> 0 | H21: =IFERROR(Orçamento!V799,"") -> 0 | I21: =Orçamento!X799 -> 
B22: 6. | C22: =Orçamento!$P800 ->  | G22: =IFERROR(Orçamento!S800,"-") -> 0 | H22: =IFERROR(Orçamento!V800,"") -> 0 | I22: =Orçamento!X800 -> 
B23: 7. | C23: =Orçamento!$P801 ->  | G23: =IFERROR(Orçamento!S801,"-") -> 0 | H23: =IFERROR(Orçamento!V801,"") -> 0 | I23: =Orçamento!X801 -> 
B24: 8. | C24: =Orçamento!$P802 ->  | G24: =IFERROR(Orçamento!S802,"-") -> 0 | H24: =IFERROR(Orçamento!V802,"") -> 0 | I24: =Orçamento!X802 -> 
B25: 9. | C25: =Orçamento!$P803 ->  | G25: =IFERROR(Orçamento!S803,"-") -> 0 | H25: =IFERROR(Orçamento!V803,"") -> 0 | I25: =Orçamento!X803 -> 
B26: 10. | C26: =Orçamento!$P804 ->  | G26: =IFERROR(Orçamento!S804,"-") -> 0 | H26: =IFERROR(Orçamento!V804,"") -> 0 | I26: =Orçamento!X804 -> 
B27: 11. | C27: =Orçamento!$P805 ->  | G27: =IFERROR(Orçamento!S805,"-") -> 0 | H27: =IFERROR(Orçamento!V805,"") -> 0 | I27: =Orçamento!X805 -> 
B28: 12. | C28: =Orçamento!$P806 ->  | G28: =IFERROR(Orçamento!S806,"-") -> 0 | H28: =IFERROR(Orçamento!V806,"") -> 0 | I28: =Orçamento!X806 -> 
B29: 13. | C29: =Orçamento!$P807 ->  | G29: =IFERROR(Orçamento!S807,"-") -> 0 | H29: =IFERROR(Orçamento!V807,"") -> 0 | I29: =Orçamento!X807 -> 
B30: 14. | C30: =Orçamento!$P808 ->  | G30: =IFERROR(Orçamento!S808,"-") -> 0 | H30: =IFERROR(Orçamento!V808,"") -> 0 | I30: =Orçamento!X808 -> 
B31: 15. | C31: =Orçamento!$P809 ->  | G31: =IFERROR(Orçamento!S809,"-") -> 0 | H31: =IFERROR(Orçamento!V809,"") -> 0 | I31: =Orçamento!X809 -> 
B32: 16. | C32: =Orçamento!$P810 ->  | G32: =IFERROR(Orçamento!S810,"-") -> 0 | H32: =IFERROR(Orçamento!V810,"") -> 0 | I32: =Orçamento!X810 -> 
B33: 17. | C33: =Orçamento!$P811 ->  | G33: =IFERROR(Orçamento!S811,"-") -> 0 | H33: =IFERROR(Orçamento!V811,"") -> 0 | I33: =Orçamento!X811 -> 
B34: 18. | C34: =Orçamento!$P812 ->  | G34: =IFERROR(Orçamento!S812,"-") -> 0 | H34: =IFERROR(Orçamento!V812,"") -> 0 | I34: =Orçamento!X812 -> 
B35: 19. | C35: =Orçamento!$P813 ->  | G35: =IFERROR(Orçamento!S813,"-") -> 0 | H35: =IFERROR(Orçamento!V813,"") -> 0 | I35: =Orçamento!X813 -> 
B36: 20. | C36: =Orçamento!$P814 ->  | G36: =IFERROR(Orçamento!S814,"-") -> 0 | H36: =IFERROR(Orçamento!V814,"") -> 0 | I36: =Orçamento!X814 -> 
A37: F | B37: TOTAL GERAL DO ORÇAMENTO (R$) | G37: =SUM(G17:G36) -> 0 | H37: =SUM(H17:H36) -> 0 | I37: =SUM(I17:I36) -> 
A38: F
A39: F

Sheet Somatório
B3: UNIDADE ESCOLAR | E3: CÓDIGO INEP
B4: =Orçamento!$O$4 -> CENTRO DE ENSINO EM PERÍODO INTEGRAL PROFESSOR JOAQUIM CARVALHO FERREIRA | E4: =Orçamento!V4 -> 52033589
B6: OBRA | E6: CIDADE
B7: =Orçamento!$O$7 -> REFORMA E AMPLIAÇÃO | E7: =Orçamento!$V$7 -> GOIÂNIA
B9: ENDEREÇO | E9: CRE
B10: =Orçamento!$R$10 -> AV FERNÃO DIAS PAES LEME S/Nº 32, CAPUAVA, CEP:74450-200 | E10: =Orçamento!$O$10 -> GOIÂNIA
B12: REFERÊNCIA | D12: DATA | E12: ÁREA TOTAL CONSTRUÍDA (M²)
B13: =CONCATENATE("AGETOP E SINAPI - ",Orçamento!$T$10) -> AGETOP E SINAPI - DESONERADA | D13: =Orçamento!$S$7 -> 2020-03-25 | E13: =Orçamento!$V$13 -> 2969.63
A14: FILTRO
B15: SOMATÓRIO DE SERVIÇOS
A16: ↓ | B16: ITEM | C16: DESCRIÇÃO DOS SERVIÇOS | D16: PREÇO SEM BDI (R$) | E16: PREÇO COM BDI (R$) | F16: PARTIC. ( % )
A17: =IF(D17>0,"F","") ->  | B17: a. | C17: =Orçamento!P761 -> SERVIÇOS PRELIMINARES | D17: =Orçamento!S761 -> 0 | E17: =Orçamento!V761 -> 0 | F17: =Orçamento!X761 -> 0
A18: =IF(D18>0,"F","") ->  | B18: b. | C18: =Orçamento!P762 -> TRANSPORTES | D18: =Orçamento!S762 -> 0 | E18: =Orçamento!V762 -> 0 | F18: =Orçamento!X762 -> 0
B19: c. | C19: =Orçamento!P763 -> SERVIÇO EM TERRA | D19: =Orçamento!S763 -> 0 | E19: =Orçamento!V763 -> 0 | F19: =Orçamento!X763 -> 0
B20: d. | C20: =Orçamento!P764 -> FUNDAÇÕES E SONDAGENS | D20: =Orçamento!S764 -> 0 | E20: =Orçamento!V764 -> 0 | F20: =Orçamento!X764 -> 0
B21: e. | C21: =Orçamento!P765 -> ESTRUTURA | D21: =Orçamento!S765 -> 0 | E21: =Orçamento!V765 -> 0 | F21: =Orçamento!X765 -> 0
B22: f. | C22: =Orçamento!P766 -> INSTALAÇÕES ELÉTRICAS | D22: =Orçamento!S766 -> 0 | E22: =Orçamento!V766 -> 0 | F22: =Orçamento!X766 -> 0
B23: g. | C23: =Orçamento!P767 -> INSTALAÇÕES HIDROSSANITÁRIAS | D23: =Orçamento!S767 -> 0 | E23: =Orçamento!V767 -> 0 | F23: =Orçamento!X767 -> 0
B24: h. | C24: =Orçamento!P768 -> INSTALAÇÕES ESPECIAIS | D24: =Orçamento!S768 -> 0 | E24: =Orçamento!V768 -> 0 | F24: =Orçamento!X768 -> 0
B25: i. | C25: =Orçamento!P769 -> ALVENARIAS E DIVISÓRIAS | D25: =Orçamento!S769 -> 0 | E25: =Orçamento!V769 -> 0 | F25: =Orçamento!X769 -> 0
B26: j. | C26: =Orçamento!P770 -> ALVENARIA AUTO-PORTANTE | D26: =Orçamento!S770 -> 0 | E26: =Orçamento!V770 -> 0 | F26: =Orçamento!X770 -> 0
B27: k. | C27: =Orçamento!P771 -> IMPERMEABILIZAÇÃO | D27: =Orçamento!S771 -> 0 | E27: =Orçamento!V771 -> 0 | F27: =Orçamento!X771 -> 0
B28: l. | C28: =Orçamento!P772 -> ISOLAMENTO TÉRMICO E ACÚSTICO | D28: =Orçamento!S772 -> 0 | E28: =Orçamento!V772 -> 0 | F28: =Orçamento!X772 -> 0
B29: m. | C29: =Orçamento!P773 -> ESTRUTURA DE MADEIRA | D29: =Orçamento!S773 -> 0 | E29: =Orçamento!V773 -> 0 | F29: =Orçamento!X773 -> 0
B30: n. | C30: =Orçamento!P774 -> ESTRUTURAS METÁLICAS | D30: =Orçamento!S774 -> 0 | E30: =Orçamento!V774 -> 0 | F30: =Orçamento!X774 -> 0
B31: o. | C31: =Orçamento!P775 -> COBERTURAS | D31: =Orçamento!S775 -> 0 | E31: =Orçamento!V775 -> 0 | F31: =Orçamento!X775 -> 0
B32: p. | C32: =Orçamento!P776 -> ESQUADRIAS DE MADEIRA | D32: =Orçamento!S776 -> 0 | E32: =Orçamento!V776 -> 0 | F32: =Orçamento!X776 -> 0
B33: q. | C33: =Orçamento!P777 -> ESQUADRIAS METÁLICAS | D33: =Orçamento!S777 -> 0 | E33: =Orçamento!V777 -> 0 | F33: =Orçamento!X777 -> 0
B34: r. | C34: =Orçamento!P778 -> VIDROS | D34: =Orçamento!S778 -> 0 | E34: =Orçamento!V778 -> 0 | F34: =Orçamento!X778 -> 0
B35: s. | C35: =Orçamento!P779 -> REVESTIMENTO DE PAREDE | D35: =Orçamento!S779 -> 0 | E35: =Orçamento!V779 -> 0 | F35: =Orçamento!X779 -> 0
B36: t. | C36: =Orçamento!P780 -> FORROS | D36: =Orçamento!S780 -> 0 | E36: =Orçamento!V780 -> 0 | F36: =Orçamento!X780 -> 0
B37: u. | C37: =Orçamento!P781 -> REVESTIMENTO DE PISO | D37: =Orçamento!S781 -> 0 | E37: =Orçamento!V781 -> 0 | F37: =Orçamento!X781 -> 0
B38: v. | C38: =Orçamento!P782 -> FERRAGENS | D38: =Orçamento!S782 -> 0 | E38: =Orçamento!V782 -> 0 | F38: =Orçamento!X782 -> 0
B39: w. | C39: =Orçamento!P783 -> MARCENARIA | D39: =Orçamento!S783 -> 0 | E39: =Orçamento!V783 -> 0 | F39: =Orçamento!X783 -> 0
B40: x. | C40: =Orçamento!P784 -> ADMINISTRAÇÃO | D40: =Orçamento!S784 -> 0 | E40: =Orçamento!V784 -> 0 | F40: =Orçamento!X784 -> 0
B41: y. | C41: =Orçamento!P785 -> PINTURA | D41: =Orçamento!S785 -> 0 | E41: =Orçamento!V785 -> 0 | F41: =Orçamento!X785 -> 0
B42: z. | C42: =Orçamento!P786 -> DIVERSOS | D42: =Orçamento!S786 -> 0 | E42: =Orçamento!V786 -> 0 | F42: =Orçamento!X786 -> 0
A43: F | B43: TOTAL GERAL DO ORÇAMENTO | D43: =SUM(D17:D42) -> 0 | E43: =SUM(E17:E42) -> 0 | F43: =SUM(F17:F42) -> 0
B45: (*) Para itens da AGETOP, os vidros não estão inclusos nas esquadrias e já foram considerados os custos de contramarco para as esquadrias de alumínio;

Sheet Cronog_120_Dias
B3: UNIDADE ESCOLAR | I3: PRAZO
B4: =Orçamento!O4 -> CENTRO DE ENSINO EM PERÍODO INTEGRAL PROFESSOR JOAQUIM CARVALHO FERREIRA | I4: 120 DIAS CORRIDOS
B6: OBRA | I6: DATA
B7: =Orçamento!O7 -> REFORMA E AMPLIAÇÃO | I7: =Orçamento!S7 -> 2020-03-25
B9: LOCAL | I9: ÁREA TOTAL CONSTRUÍDA (M²)
A10: FILTRO | B10: =Orçamento!V7 -> GOIÂNIA | I10: =Orçamento!V13 -> 2969.63
B12: CRONOGRAMA - FÍSICO FINANCEIRO
A13: ↓ | B13: CUSTO TOTAL: | C13: =D93 -> 0 | D13: VALOR | E13: Dias: | F13: 30 | J13: 60 | N13: 90 | R13: 120 | V13: TOTAL
B14: DESCRIÇÃO DOS SERVIÇOS | E14: % | F14: 1ª PARCELA | J14: 2ª PARCELA | N14: 3ª PARCELA | R14: 4ª PARCELA
A15: =IF(D15>0,"F","") ->  | B15: SERVIÇOS PRELIMINARES | D15: =Orçamento!V761 -> 0 | E15: =Orçamento!X761 -> 0 | F15: =ROUND(F17*$D$15,2) -> 0 | J15: =ROUND(J17*$D$15,2) -> 0 | N15: =ROUND(N17*$D$15,2) -> 0 | R15: =ROUND(R17*$D$15,2) -> 0 | V15: =SUM(F15:U15) -> 0 | X15: =IF(D15=V15,"OK","ERRO") -> OK
A16: =IF(A15="F",A15,"") -> 
A17: =IF(A16="F",A16,"") ->  | F17: 1 | J17: 0 | N17: 0 | R17: =100%-(SUM(F17:Q17)) -> 0 | V17: =IFERROR(E15/100,"") -> 0 | X17: =IF(E15=V17*100,"OK","ERRO") -> OK
A18: =IF(D18>0,"F","") ->  | B18: TRANSPORTES | D18: =Orçamento!V762 -> 0 | E18: =Orçamento!X762 -> 0 | F18: =ROUND(F20*$D$18,2) -> 0 | J18: =ROUND(J20*$D$18,2) -> 0 | N18: =ROUND(N20*$D$18,2) -> 0 | R18: =ROUND(R20*$D$18,2) -> 0 | V18: =SUM(F18:U18) -> 0 | X18: =IF(D18=V18,"OK","ERRO") -> OK
A19: =IF(A18="F",A18,"") -> 
A20: =IF(A19="F",A19,"") ->  | F20: 0.26 | J20: 0.26 | N20: 0.26 | R20: =100%-(SUM(F20:Q20)) -> 0.22 | V20: =IFERROR(E18/100,"") -> 0 | X20: =IF(E18=V20*100,"OK","ERRO") -> OK
A21: =IF(D21>0,"F","") ->  | B21: SERVIÇO EM TERRA | D21: =Orçamento!V763 -> 0 | E21: =Orçamento!X763 -> 0 | F21: =ROUND(F23*$D$21,2) -> 0 | J21: =ROUND(J23*$D$21,2) -> 0 | N21: =ROUND(N23*$D$21,2) -> 0 | R21: =ROUND(R23*$D$21,2) -> 0 | V21: =SUM(F21:U21) -> 0 | X21: =IF(D21=V21,"OK","ERRO") -> OK
A22: =IF(A21="F",A21,"") -> 
A23: =IF(A22="F",A22,"") ->  | F23: 1 | J23: 0 | N23: 0 | R23: =100%-(SUM(F23:Q23)) -> 0 | V23: =IFERROR(E21/100,"") -> 0 | X23: =IF(E21=V23*100,"OK","ERRO") -> OK
A24: =IF(D24>0,"F","") ->  | B24: FUNDAÇÕES E SONDAGENS | D24: =Orçamento!V764 -> 0 | E24: =Orçamento!X764 -> 0 | F24: =ROUND(F26*$D$24,2) -> 0 | J24: =ROUND(J26*$D$24,2) -> 0 | N24: =ROUND(N26*$D$24,2) -> 0 | R24: =ROUND(R26*$D$24,2) -> 0 | V24: =SUM(F24:U24) -> 0 | X24: =IF(D24=V24,"OK","ERRO") -> OK
A25: =IF(A24="F",A24,"") -> 
A26: =IF(A25="F",A25,"") ->  | F26: 1 | J26: 0 | R26: =100%-(SUM(F26:Q26)) -> 0 | V26: =IFERROR(E24/100,"") -> 0 | X26: =IF(E24=V26*100,"OK","ERRO") -> OK
A27: =IF(D27>0,"F","") ->  | B27: ESTRUTURA | D27: =Orçamento!V765 -> 0 | E27: =Orçamento!X765 -> 0 | F27: =ROUND(F29*$D$27,2) -> 0 | J27: =ROUND(J29*$D$27,2) -> 0 | N27: =ROUND(N29*$D$27,2) -> 0 | R27: =ROUND(R29*$D$27,2) -> 0 | V27: =SUM(F27:U27) -> 0 | X27: =IF(D27=V27,"OK","ERRO") -> OK
A28: =IF(A27="F",A27,"") -> 
A29: =IF(A28="F",A28,"") ->  | F29: 0.4 | J29: 0.6 | N29: 0 | R29: =100%-(SUM(F29:Q29)) -> 0 | V29: =IFERROR(E27/100,"") -> 0 | X29: =IF(E27=V29*100,"OK","ERRO") -> OK
A30: =IF(D30>0,"F","") ->  | B30: INST.ELET/TELEFÔNICA/CABEAMENTO ESTRUTURADO | D30: =Orçamento!V766 -> 0 | E30: =Orçamento!X766 -> 0 | F30: =ROUND(F32*$D$30,2) -> 0 | J30: =ROUND(J32*$D$30,2) -> 0 | N30: =ROUND(N32*$D$30,2) -> 0 | R30: =ROUND(R32*$D$30,2) -> 0 | V30: =SUM(F30:U30) -> 0 | X30: =IF(D30=V30,"OK","ERRO") -> OK
A31: =IF(A30="F",A30,"") -> 
A32: =IF(A31="F",A31,"") ->  | J32: 0.75 | N32: 0.25 | R32: =100%-(SUM(F32:Q32)) -> 0 | V32: =IFERROR(E30/100,"") -> 0 | X32: =IF(E30=V32*100,"OK","ERRO") -> OK
A33: =IF(D33>0,"F","") ->  | B33: INSTALAÇÕES HIDROSSANITÁRIAS | D33: =Orçamento!V767 -> 0 | E33: =Orçamento!X767 -> 0 | F33: =ROUND(F35*$D$33,2) -> 0 | J33: =ROUND(J35*$D$33,2)-0.01 -> -0.01 | N33: =ROUND(N35*$D$33,2) -> 0 | R33: =ROUND(R35*$D$33,2) -> 0 | V33: =SUM(F33:U33) -> -0.01 | W33: 1 | X33: =IF(D33=V33,"OK","ERRO") -> ERRO
A34: =IF(A33="F",A33,"") -> 
A35: =IF(A34="F",A34,"") ->  | J35: 0.75 | N35: 0.25 | R35: =100%-(SUM(F35:Q35)) -> 0 | V35: =IFERROR(E33/100,"") -> 0 | X35: =IF(E33=V35*100,"OK","ERRO") -> OK
A36: =IF(D36>0,"F","") ->  | B36: INSTALAÇÕES ESPECIAIS | D36: =Orçamento!V768 -> 0 | E36: =Orçamento!X768 -> 0 | F36: =ROUND(F38*$D$36,2) -> 0 | J36: =ROUND(J38*$D$36,2) -> 0 | N36: =ROUND(N38*$D$36,2) -> 0 | R36: =ROUND(R38*$D$36,2) -> 0 | V36: =SUM(F36:U36) -> 0 | X36: =IF(D36=V36,"OK","ERRO") -> OK
A37: =IF(A36="F",A36,"") -> 
A38: =IF(A37="F",A37,"") ->  | J38: 0.63 | N38: 0.37 | R38: =100%-(SUM(F38:Q38)) -> 0 | V38: =IFERROR(E36/100,"") -> 0 | X38: =IF(E36=V38*100,"OK","ERRO") -> OK
A39: =IF(D39>0,"F","") ->  | B39: ALVENARIA E DIVISÓRIAS | D39: =Orçamento!V769 -> 0 | E39: =Orçamento!X769 -> 0 | F39: =ROUND(F41*$D$39,2) -> 0 | J39: =ROUND(J41*$D$39,2) -> 0 | N39: =ROUND(N41*$D$39,2) -> 0 | R39: =ROUND(R41*$D$39,2) -> 0 | V39: =SUM(F39:U39) -> 0 | X39: =IF(D39=V39,"OK","ERRO") -> OK
A40: =IF(A39="F",A39,"") -> 
A41: =IF(A40="F",A40,"") ->  | J41: 0.63 | N41: 0.37 | R41: =100%-(SUM(F41:Q41)) -> 0 | V41: =IFERROR(E39/100,"") -> 0 | X41: =IF(E39=V41*100,"OK","ERRO") -> OK
A42: =IF(D42>0,"F","") ->  | B42: ALVENARIA AUTO-PORTANTE | D42: =Orçamento!V770 -> 0 | E42: =Orçamento!X770 -> 0 | F42: =ROUND(F44*$D$42,2) -> 0 | J42: =ROUND(J44*$D$42,2) -> 0 | N42: =ROUND(N44*$D$42,2) -> 0 | R42: =ROUND(R44*$D$42,2) -> 0 | V42: =SUM(F42:U42) -> 0 | X42: =IF(D42=V42,"OK","ERRO") -> OK
A43: =IF(A42="F",A42,"") -> 
A44: =IF(A43="F",A43,"") ->  | J44: 0.63 | N44: 0.37 | R44: =100%-(SUM(F44:Q44)) -> 0 | V44: =IFERROR(E42/100,"") -> 0 | X44: =IF(E42=V44*100,"OK","ERRO") -> OK
A45: =IF(D45>0,"F","") ->  | B45: IMPERMEABILIZAÇÃO | D45: =Orçamento!V771 -> 0 | E45: =Orçamento!X771 -> 0 | F45: =ROUND(F47*$D$45,2) -> 0 | J45: =ROUND(J47*$D$45,2) -> 0 | N45: =ROUND(N47*$D$45,2)+0.01 -> 0.01 | R45: =ROUND(R47*$D$45,2) -> 0 | V45: =SUM(F45:U45) -> 0.01 | W45: 1 | X45: =IF(D45=V45,"OK","ERRO") -> ERRO
A46: =IF(A45="F",A45,"") -> 
A47: =IF(A46="F",A46,"") ->  | F47: 0.35 | J47: 0.35 | N47: 0.3 | R47: =100%-(SUM(F47:Q47)) -> 0 | V47: =IFERROR(E45/100,"") -> 0 | X47: =IF(E45=V47*100,"OK","ERRO") -> OK
A48: =IF(D48>0,"F","") ->  | B48: ISOLAMENTO TÉRMICO E ACÚSTICO | D48: =Orçamento!V772 -> 0 | E48: =Orçamento!X772 -> 0 | F48: =ROUND(F50*$D$48,2) -> 0 | J48: =ROUND(J50*$D$48,2) -> 0 | N48: =ROUND(N50*$D$48,2) -> 0 | R48: =ROUND(R50*$D$48,2) -> 0 | V48: =SUM(F48:U48) -> 0 | X48: =IF(D48=V48,"OK","ERRO") -> OK
A49: =IF(A48="F",A48,"") -> 
A50: =IF(A49="F",A49,"") ->  | J50: 0.55 | N50: 0.4 | R50: =100%-(SUM(F50:Q50)) -> 0.05 | V50: =IFERROR(E48/100,"") -> 0 | X50: =IF(E48=V50*100,"OK","ERRO") -> OK
A51: =IF(D51>0,"F","") ->  | B51: ESTRUTURA DE MADEIRA | D51: =Orçamento!V773 -> 0 | E51: =Orçamento!X773 -> 0 | F51: =ROUND(F53*$D$51,2) -> 0 | J51: =ROUND(J53*$D$51,2) -> 0 | N51: =ROUND(N53*$D$51,2) -> 0 | R51: =ROUND(R53*$D$51,2) -> 0 | V51: =SUM(F51:U51) -> 0 | X51: =IF(D51=V51,"OK","ERRO") -> OK
A52: =IF(A51="F",A51,"") -> 
A53: =IF(A52="F",A52,"") ->  | J53: 0.35 | N53: 0.65 | R53: =100%-(SUM(F53:Q53)) -> 0 | V53: =IFERROR(E51/100,"") -> 0 | X53: =IF(E51=V53*100,"OK","ERRO") -> OK
A54: =IF(D54>0,"F","") ->  | B54: ESTRUTURA METÁLICA | D54: =Orçamento!V774 -> 0 | E54: =Orçamento!X774 -> 0 | F54: =ROUND(F56*$D$54,2) -> 0 | J54: =ROUND(J56*$D$54,2) -> 0 | N54: =ROUND(N56*$D$54,2) -> 0 | R54: =ROUND(R56*$D$54,2) -> 0 | V54: =SUM(F54:U54) -> 0 | X54: =IF(D54=V54,"OK","ERRO") -> OK
A55: =IF(A54="F",A54,"") -> 
A56: =IF(A55="F",A55,"") ->  | J56: 0.35 | N56: 0.65 | R56: =100%-(SUM(F56:Q56)) -> 0 | V56: =IFERROR(E54/100,"") -> 0 | X56: =IF(E54=V56*100,"OK","ERRO") -> OK
A57: =IF(D57>0,"F","") ->  | B57: COBERTURAS | D57: =Orçamento!V775 -> 0 | E57: =Orçamento!X775 -> 0 | F57: =ROUND(F59*$D$57,2) -> 0 | J57: =ROUND(J59*$D$57,2) -> 0 | N57: =ROUND(N59*$D$57,2) -> 0 | R57: =ROUND(R59*$D$57,2) -> 0 | V57: =SUM(F57:U57) -> 0 | X57: =IF(D57=V57,"OK","ERRO") -> OK
A58: =IF(A57="F",A57,"") -> 
A59: =IF(A58="F",A58,"") ->  | N59: 0.55 | R59: =100%-(SUM(F59:Q59)) -> 0.45 | V59: =IFERROR(E57/100,"") -> 0 | X59: =IF(E57=V59*100,"OK","ERRO") -> OK
A60: =IF(D60>0,"F","") ->  | B60: ESQUADRIAS DE MADEIRA | D60: =Orçamento!V776 -> 0 | E60: =Orçamento!X776 -> 0 | F60: =ROUND(F62*$D$60,2) -> 0 | J60: =ROUND(J62*$D$60,2) -> 0 | N60: =ROUND(N62*$D$60,2) -> 0 | R60: =ROUND(R62*$D$60,2) -> 0 | V60: =SUM(F60:U60) -> 0 | X60: =IF(D60=V60,"OK","ERRO") -> OK
A61: =IF(A60="F",A60,"") -> 
A62: =IF(A61="F",A61,"") ->  | N62: 0.55 | R62: =100%-(SUM(F62:Q62)) -> 0.45 | V62: =IFERROR(E60/100,"") -> 0 | X62: =IF(E60=V62*100,"OK","ERRO") -> OK
A63: =IF(D63>0,"F","") ->  | B63: ESQUADRIAS METÁLICAS | D63: =Orçamento!V777 -> 0 | E63: =Orçamento!X777 -> 0 | F63: =ROUND(F65*$D$63,2) -> 0 | J63: =ROUND(J65*$D$63,2) -> 0 | N63: =ROUND(N65*$D$63,2) -> 0 | R63: =ROUND(R65*$D$63,2) -> 0 | V63: =SUM(F63:U63) -> 0 | X63: =IF(D63=V63,"OK","ERRO") -> OK
A64: =IF(A63="F",A63,"") -> 
A65: =IF(A64="F",A64,"") ->  | N65: 0.55 | R65: =100%-(SUM(F65:Q65)) -> 0.45 | V65: =IFERROR(E63/100,"") -> 0 | X65: =IF(E63=V65*100,"OK","ERRO") -> OK
A66: =IF(D66>0,"F","") ->  | B66: VIDROS | D66: =Orçamento!V778 -> 0 | E66: =Orçamento!X778 -> 0 | F66: =ROUND(F68*$D$66,2) -> 0 | J66: =ROUND(J68*$D$66,2) -> 0 | N66: =ROUND(N68*$D$66,2) -> 0 | R66: =ROUND(R68*$D$66,2) -> 0 | V66: =SUM(F66:U66) -> 0 | X66: =IF(D66=V66,"OK","ERRO") -> OK
A67: =IF(A66="F",A66,"") -> 
A68: =IF(A67="F",A67,"") ->  | N68: 0 | R68: 1 | V68: =IFERROR(E66/100,"") -> 0 | X68: =IF(E66=V68*100,"OK","ERRO") -> OK
A69: =IF(D69>0,"F","") ->  | B69: REVESTIMENTO DE PAREDE | D69: =Orçamento!V779 -> 0 | E69: =Orçamento!X779 -> 0 | F69: =ROUND(F71*$D$69,2) -> 0 | J69: =ROUND(J71*$D$69,2) -> 0 | N69: =ROUND(N71*$D$69,2) -> 0 | R69: =ROUND(R71*$D$69,2) -> 0 | V69: =SUM(F69:U69) -> 0 | X69: =IF(D69=V69,"OK","ERRO") -> OK
A70: =IF(A69="F",A69,"") -> 
A71: =IF(A70="F",A70,"") ->  | N71: 1 | R71: =100%-(SUM(F71:Q71)) -> 0 | V71: =IFERROR(E69/100,"") -> 0 | X71: =IF(E69=V71*100,"OK","ERRO") -> OK
A72: =IF(D72>0,"F","") ->  | B72: FORROS | D72: =Orçamento!V780 -> 0 | E72: =Orçamento!X780 -> 0 | F72: =ROUND(F74*$D$72,2) -> 0 | J72: =ROUND(J74*$D$72,2) -> 0 | N72: =ROUND(N74*$D$72,2) -> 0 | R72: =ROUND(R74*$D$72,2) -> 0 | V72: =SUM(F72:U72) -> 0 | X72: =IF(D72=V72,"OK","ERRO") -> OK
A73: =IF(A72="F",A72,"") -> 
A74: =IF(A73="F",A73,"") ->  | N74: 0.4 | R74: =100%-(SUM(F74:Q74)) -> 0.6 | V74: =IFERROR(E72/100,"") -> 0 | X74: =IF(E72=V74*100,"OK","ERRO") -> OK
A75: =IF(D75>0,"F","") ->  | B75: REVESTIMENTO DE PISO | D75: =Orçamento!V781 -> 0 | E75: =Orçamento!X781 -> 0 | F75: =ROUND(F77*$D$75,2) -> 0 | J75: =ROUND(J77*$D$75,2) -> 0 | N75: =ROUND(N77*$D$75,2) -> 0 | R75: =ROUND(R77*$D$75,2) -> 0 | V75: =SUM(F75:U75) -> 0 | X75: =IF(D75=V75,"OK","ERRO") -> OK
A76: =IF(A75="F",A75,"") -> 
A77: =IF(A76="F",A76,"") ->  | N77: 0.4 | R77: =100%-(SUM(F77:Q77)) -> 0.6 | V77: =IFERROR(E75/100,"") -> 0 | X77: =IF(E75=V77*100,"OK","ERRO") -> OK
A78: =IF(D78>0,"F","") ->  | B78: FERRAGENS | D78: =Orçamento!V782 -> 0 | E78: =Orçamento!X782 -> 0 | F78: =ROUND(F80*$D$78,2) -> 0 | J78: =ROUND(J80*$D$78,2) -> 0 | N78: =ROUND(N80*$D$78,2) -> 0 | R78: =ROUND(R80*$D$78,2) -> 0 | V78: =SUM(F78:U78) -> 0 | X78: =IF(D78=V78,"OK","ERRO") -> OK
A79: =IF(A78="F",A78,"") -> 
A80: =IF(A79="F",A79,"") ->  | R80: =100%-(SUM(F80:Q80)) -> 1 | V80: =IFERROR(E78/100,"") -> 0 | X80: =IF(E78=V80*100,"OK","ERRO") -> OK
A81: =IF(D81>0,"F","") ->  | B81: MARCENARIA | D81: =Orçamento!V783 -> 0 | E81: =Orçamento!X783 -> 0 | F81: =ROUND(F83*$D$81,2) -> 0 | J81: =ROUND(J83*$D$81,2) -> 0 | N81: =ROUND(N83*$D$81,2) -> 0 | R81: =ROUND(R83*$D$81,2) -> 0 | V81: =SUM(F81:U81) -> 0 | X81: =IF(D81=V81,"OK","ERRO") -> OK
A82: =IF(A81="F",A81,"") -> 
A83: =IF(A82="F",A82,"") ->  | R83: =100%-(SUM(F83:Q83)) -> 1 | V83: =IFERROR(E81/100,"") -> 0 | X83: =IF(E81=V83*100,"OK","ERRO") -> OK
A84: =IF(D84>0,"F","") ->  | B84: ADMINISTRAÇÃO - MENSALISTAS | D84: =Orçamento!V784 -> 0 | E84: =Orçamento!X784 -> 0 | F84: =ROUND(F86*$D$84,2) -> 0 | J84: =ROUND(J86*$D$84,2) -> 0 | N84: =ROUND(N86*$D$84,2) -> 0 | R84: =ROUND(R86*$D$84,2) -> 0 | V84: =SUM(F84:U84) -> 0 | X84: =IF(D84=V84,"OK","ERRO") -> OK
A85: =IF(A84="F",A84,"") -> 
A86: =IF(A85="F",A85,"") ->  | F86: 0.26 | J86: 0.26 | N86: 0.25 | R86: =100%-(SUM(F86:Q86)) -> 0.23 | V86: =IFERROR(E84/100,"") -> 0 | X86: =IF(E84=V86*100,"OK","ERRO") -> OK
A87: =IF(D87>0,"F","") ->  | B87: PINTURA | D87: =Orçamento!V785 -> 0 | E87: =Orçamento!X785 -> 0 | F87: =ROUND(F89*$D$87,2) -> 0 | J87: =ROUND(J89*$D$87,2) -> 0 | N87: =ROUND(N89*$D$87,2) -> 0 | R87: =ROUND(R89*$D$87,2) -> 0 | V87: =SUM(F87:U87) -> 0 | X87: =IF(D87=V87,"OK","ERRO") -> OK
A88: =IF(A87="F",A87,"") -> 
A89: =IF(A88="F",A88,"") ->  | N89: 0.36 | R89: =100%-(SUM(F89:Q89)) -> 0.64 | V89: =IFERROR(E87/100,"") -> 0 | X89: =IF(E87=V89*100,"OK","ERRO") -> OK
A90: =IF(D90>0,"F","") ->  | B90: DIVERSOS | D90: =Orçamento!V786 -> 0 | E90: =Orçamento!X786 -> 0 | F90: =ROUND(F92*$D$90,2) -> 0 | J90: =ROUND(J92*$D$90,2) -> 0 | N90: =ROUND(N92*$D$90,2) -> 0 | R90: =ROUND(R92*$D$90,2)-0.01 -> -0.01 | V90: =SUM(F90:U90) -> -0.01 | W90: 1 | X90: =IF(D90=V90,"OK","ERRO") -> ERRO
A91: =IF(A90="F",A90,"") -> 
A92: =IF(A91="F",A91,"") ->  | F92: 0.255 | J92: 0.255 | N92: 0.255 | R92: =100%-(SUM(F92:Q92)) -> 0.235 | V92: =IFERROR(E90/100,"") -> 0 | X92: =IF(E90=V92*100,"OK","ERRO") -> OK
A93: F | B93: CUSTO DO ORÇAMENTO | D93: =SUM(D15:D92) -> 0 | E93: =SUM(E15:E92) -> 0 | F93: =F15+F18+F21+F24+F27+F30+F33+F36+F39+F42+F45+F48+F51+F54+F57+F60+F63+F66+F69+F72+F75+F78+F81+F84+F87+F90 -> 0 | J93: =J15+J18+J21+J24+J27+J30+J33+J36+J39+J42+J45+J48+J51+J54+J57+J60+J63+J66+J69+J72+J75+J78+J81+J84+J87+J90 -> -0.01 | N93: =N15+N18+N21+N24+N27+N30+N33+N36+N39+N42+N45+N48+N51+N54+N57+N60+N63+N66+N69+N72+N75+N78+N81+N84+N87+N90 -> 0.01 | R93: =R15+R18+R21+R24+R27+R30+R33+R36+R39+R42+R45+R48+R51+R54+R57+R60+R63+R66+R69+R72+R75+R78+R81+R84+R87+R90 -> -0.01 | V93: =V15+V18+V21+V24+V27+V30+V33+V36+V39+V42+V45+V48+V51+V54+V57+V60+V63+V66+V69+V72+V75+V78+V81+V84+V87+V90 -> -0.01
A94: F | B94: PERCENTUAIS: | F94: =IFERROR(F93/$D$93,"") ->  | J94: =IFERROR(J93/$D$93,"") ->  | N94: =IFERROR(N93/$D$93,"") ->  | R94: =IFERROR(R93/$D$93,"") ->  | V94: =SUM(F94:U94) -> 0
A95: F | B95: TOTAIS ACUMULADOS: | F95: =F93 -> 0 | J95: =J93+F95 -> -0.01 | N95: =N93+J95 -> 0 | R95: =R93+N95 -> -0.01
A96: F | B96: PERCENTUAIS ACUMULADOS: | F96: =F94 ->  | J96: =J94+F96 ->  | N96: =N94+J96 ->  | R96: =R94+N96 -> 
A97: F
A98: F | B98: OBSERVAÇÕES:
A99: F | B99: Os pagamentos somente poderão ser efetuados mediante medição e atesto pelos técnicos da Secretaria da Educação.

Sheet Composição BDI
A3: UNIDADE ESCOLAR
A4: =Orçamento!$O$4 -> CENTRO DE ENSINO EM PERÍODO INTEGRAL PROFESSOR JOAQUIM CARVALHO FERREIRA
A6: OBRA
A7: =Orçamento!$O$7 -> REFORMA E AMPLIAÇÃO
A9: ENDEREÇO
A10: =Orçamento!$R$10 -> AV FERNÃO DIAS PAES LEME S/Nº 32, CAPUAVA, CEP:74450-200
A12: CIDADE
A13: =Orçamento!$V$7 -> GOIÂNIA
A15: CRE
A16: =Orçamento!$O$10 -> GOIÂNIA
A18: DETALHAMENTO DA COMPOSIÇÃO DE BDI
A19: COMPOSIÇÃO BDI PARA OBRAS CIVIS | F19: BDI CONSTRUÇÃO E REFORMA
A20: DESCRIÇÃO | B20: COEF. | C20: TAXA % (a.m) | D20: % no preço de venda | F20: Situação | G20: 1º Quartil | H20: Médio | I20: 3º Quartil
A21: 1) COFINS | B21: 1 | C21: 0.03 | D21: =C21 -> 0.03 | F21: =IF(OR(C21<G21,C21>I21),"FORA DO INTERVALO","OK") -> OK | G21: 0.03 | H21: 0.03 | I21: 0.03
A22: 2) PIS | B22: 1 | C22: 0.0065 | D22: =C22 -> 0.0065 | F22: =IF(OR(C22<G22,C22>I22),"FORA DO INTERVALO","OK") -> OK | G22: 0.0065 | H22: 0.0065 | I22: 0.0065
A23: 3) ISSQN | B23: 1 | C23: 0.03 | D23: =C23*B23 -> 0.03 | F23: OK | G23: 0.02 | H23: 0.035 | I23: 0.05
A24: 4) CPRB | B24: 1 | C24: 0.045 | D24: =C24 -> 0.045 | F24: OK | G24: 0.045 | H24: 0.045 | I24: 0.045
A25: 5) Administração Central | B25: 1 | C25: 0.0312 | D25: 0.0312 | F25: OK | G25: 0.03 | H25: 0.04 | I25: 0.055
A26: 6) Despesas Financeiras | B26: 1 | C26: 0.0056 | D26: 0.0056 | F26: FORA DO INTERVALO | G26: 0.0059 | H26: 0.0123 | I26: 0.0139
A27: 7) Seguros + Garantias | B27: 1 | C27: 0.0012 | D27: 0.0012 | F27: FORA DO INTERVALO | G27: 0.008 | H27: 0.008 | I27: 0.01
A28: 8) Risco | B28: 1 | C28: 0.0097 | D28: 0.0097 | F28: OK | G28: 0.0097 | H28: 0.0127 | I28: 0.0127
A29: 9) Lucro | B29: 1 | C29: 0.072 | D29: 0.072 | F29: OK | G29: 0.0616 | H29: 0.074 | I29: 0.0896
A30: BDI - FINAL | D30: =(((1+D25+D27+D28)*(1+D26)*(1+D29))/(1-(D21+D22+D23+D24))-1) -> 0.2643636857 | F30: =IF(OR(D30<G30,D30>I30),"FORA DO INTERVALO","OK") -> FORA DO INTERVALO | G30: 0.2034 | H30: 0.2212 | I30: 0.25
A32: Notas:
A33: (1) e (2) Alíquota definida por lei.
A34: (3) Alíquota e base de cálculo definidas pela legislação municipal.
A35: (4) Alíquota definida pelas leis 12.546/11, 12844/13 e 13.161/15 (CPRB – contribuição previdenciária sobre a receita bruta).
A36: (5) Valores definidos a partir dos limites no Acórdão nº 2.622/2013 - TCU – Plenário. Valores entre o 1º e 3º quartis.
A37: (6) Valor calculado pela expressão matemática do acórdão 2.369/2011 – TCU – Plenário e disponibilizado pela AGETOP em dezembro de 2018. (Foi utilizado para o cálculo a média da Taxa SELIC no período de 11/2017 a 10/2018)
A39: (7) Valores definidos pela AGETOP a partir dos limites no Acórdão nº 2.622/2013 - TCU – Plenário. Valores médios. Observação da AGETOP: (Seguros contra erros de execução, incêndio e explosão, danos da natureza (vendaval, destelhamento, alagamento, inundação, desmoronamento, geadas etc.), emprego de material defeituoso ou inadequado, roubo e/ou furto qualificado, quebra de equipamentos, desmoronamento de estrutura, nas modalidades de Obras Civis em Construção (OCC); Instalação e Montagem (IM); e Obras Civis em Construção e Instalação e Montagem (OCC/IM). Bem como coberturas adicionais para ampliação dessas coberturas básicas, como: cobertura de responsabilidade civil geral, cobertura de responsabilidade civil cruzada, cobertura de despesas extraordinárias, cobertura de tumultos, cobertura de desentulho do local, cobertura de riscos do fabricante, dentre outras, incluindo o seguro de vida em grupo regido pela convenção coletiva dos trabalhadores na indústria da construção civil). A partir de 24/02/2015 por intermédio da Portaria 449/2015 a Presidência da AGETOP, na pessoa do Senhor Jayme Eduardo Rincon, determinou a exclusão dos valores referentes aos Seguros de Risco de Engenharia e Responsabilidade Civil do Profissional na composição do cálculo do B.D.I..
A40: (8) Valores definidos a partir dos limites no Acórdão nº 2.622/2013 - TCU – Plenário. Valores entre 1º e 3° quartis.
A41: (9) Valores definidos a partir dos limites definidos no Acórdão nº 2.622/2013 - TCU – Plenário. Valores adotados e praticados no mercado ( “ ex ante ” ) ou aqueles entre os 1º e 3º quartis.
A43: (*) A fórmula para estipulação da taxa de BDI estimado adotado é a mesma que foi aplicada para a obtenção das tabelas contidas no Acórdão n. 2.622/2013 – TCUPlenário
A45: Obs.: Para obras com valores superiores a R$ 20.000.000,00 sugere-se recalcular o BDI, dimensionando as taxas de administração central e lucro para patamares inferiores ao estipulado acima.

Sheet Relatório CENTRAL
B3: UNIDADE ESCOLAR | D3: CIDADE
B4: =Orçamento!$O$4 -> CENTRO DE ENSINO EM PERÍODO INTEGRAL PROFESSOR JOAQUIM CARVALHO FERREIRA | D4: =Orçamento!$V$7 -> GOIÂNIA
B6: OBRA | D6: CRE
B7: =Orçamento!$O$7 -> REFORMA E AMPLIAÇÃO | D7: =Orçamento!$O$10 -> GOIÂNIA
B9: ENDEREÇO | D9: DATA
A10: FILTRO | B10: =Orçamento!$R$10 -> AV FERNÃO DIAS PAES LEME S/Nº 32, CAPUAVA, CEP:74450-200 | D10: =Orçamento!$S$7 -> 2020-03-25
B12: RELATÓRIO CENTRAL
A13: ↓ | B13: CÓDIGO | C13: ETAPA | D13: PREÇO (R$) C/ BDI | E13: PARTIC ( % )
A14: =IF(D14>0,"F","") ->  | B14: =Orçamento!O761 -> a. | C14: =Orçamento!P761 -> SERVIÇOS PRELIMINARES | D14: =Orçamento!V761 -> 0 | E14: =Orçamento!X761 -> 0
A15: =IF(D15>0,"F","") ->  | B15: =Orçamento!O762 -> b. | C15: =Orçamento!P762 -> TRANSPORTES | D15: =Orçamento!V762 -> 0 | E15: =Orçamento!X762 -> 0
B16: =Orçamento!O763 -> c. | C16: =Orçamento!P763 -> SERVIÇO EM TERRA | D16: =Orçamento!V763 -> 0 | E16: =Orçamento!X763 -> 0
B17: =Orçamento!O764 -> d. | C17: =Orçamento!P764 -> FUNDAÇÕES E SONDAGENS | D17: =Orçamento!V764 -> 0 | E17: =Orçamento!X764 -> 0
B18: =Orçamento!O765 -> e. | C18: =Orçamento!P765 -> ESTRUTURA | D18: =Orçamento!V765 -> 0 | E18: =Orçamento!X765 -> 0
B19: =Orçamento!O766 -> f. | C19: =Orçamento!P766 -> INSTALAÇÕES ELÉTRICAS | D19: =Orçamento!V766 -> 0 | E19: =Orçamento!X766 -> 0
B20: =Orçamento!O767 -> g. | C20: =Orçamento!P767 -> INSTALAÇÕES HIDROSSANITÁRIAS | D20: =Orçamento!V767 -> 0 | E20: =Orçamento!X767 -> 0
B21: =Orçamento!O768 -> h | C21: =Orçamento!P768 -> INSTALAÇÕES ESPECIAIS | D21: =Orçamento!V768 -> 0 | E21: =Orçamento!X768 -> 0
B22: =Orçamento!O769 -> i. | C22: =Orçamento!P769 -> ALVENARIAS E DIVISÓRIAS | D22: =Orçamento!V769 -> 0 | E22: =Orçamento!X769 -> 0
B23: =Orçamento!O770 -> j. | C23: =Orçamento!P770 -> ALVENARIA AUTO-PORTANTE | D23: =Orçamento!V770 -> 0 | E23: =Orçamento!X770 -> 0
B24: =Orçamento!O771 -> k. | C24: =Orçamento!P771 -> IMPERMEABILIZAÇÃO | D24: =Orçamento!V771 -> 0 | E24: =Orçamento!X771 -> 0
B25: =Orçamento!O772 -> l. | C25: =Orçamento!P772 -> ISOLAMENTO TÉRMICO E ACÚSTICO | D25: =Orçamento!V772 -> 0 | E25: =Orçamento!X772 -> 0
B26: =Orçamento!O773 -> m. | C26: =Orçamento!P773 -> ESTRUTURA DE MADEIRA | D26: =Orçamento!V773 -> 0 | E26: =Orçamento!X773 -> 0
B27: =Orçamento!O774 -> n. | C27: =Orçamento!P774 -> ESTRUTURAS METÁLICAS | D27: =Orçamento!V774 -> 0 | E27: =Orçamento!X774 -> 0
B28: =Orçamento!O775 -> o. | C28: =Orçamento!P775 -> COBERTURAS | D28: =Orçamento!V775 -> 0 | E28: =Orçamento!X775 -> 0
B29: =Orçamento!O776 -> p. | C29: =Orçamento!P776 -> ESQUADRIAS DE MADEIRA | D29: =Orçamento!V776 -> 0 | E29: =Orçamento!X776 -> 0
B30: =Orçamento!O777 -> q. | C30: =Orçamento!P777 -> ESQUADRIAS METÁLICAS | D30: =Orçamento!V777 -> 0 | E30: =Orçamento!X777 -> 0
B31: =Orçamento!O778 -> r. | C31: =Orçamento!P778 -> VIDROS | D31: =Orçamento!V778 -> 0 | E31: =Orçamento!X778 -> 0
B32: =Orçamento!O779 -> s. | C32: =Orçamento!P779 -> REVESTIMENTO DE PAREDE | D32: =Orçamento!V779 -> 0 | E32: =Orçamento!X779 -> 0
B33: =Orçamento!O780 -> t. | C33: =Orçamento!P780 -> FORROS | D33: =Orçamento!V780 -> 0 | E33: =Orçamento!X780 -> 0
B34: =Orçamento!O781 -> u. | C34: =Orçamento!P781 -> REVESTIMENTO DE PISO | D34: =Orçamento!V781 -> 0 | E34: =Orçamento!X781 -> 0
B35: =Orçamento!O782 -> v. | C35: =Orçamento!P782 -> FERRAGENS | D35: =Orçamento!V782 -> 0 | E35: =Orçamento!X782 -> 0
B36: =Orçamento!O783 -> w. | C36: =Orçamento!P783 -> MARCENARIA | D36: =Orçamento!V783 -> 0 | E36: =Orçamento!X783 -> 0
B37: =Orçamento!O784 -> x. | C37: =Orçamento!P784 -> ADMINISTRAÇÃO | D37: =Orçamento!V784 -> 0 | E37: =Orçamento!X784 -> 0
B38: =Orçamento!O785 -> y. | C38: =Orçamento!P785 -> PINTURA | D38: =Orçamento!V785 -> 0 | E38: =Orçamento!X785 -> 0
B39: =Orçamento!O786 -> z. | C39: =Orçamento!P786 -> DIVERSOS | D39: =Orçamento!V786 -> 0 | E39: =Orçamento!X786 -> 0
A40: F | B40: TOTAL GERAL DO ORÇAMENTO (R$) C/BDI | D40: =SUM(D14:D39) -> 0 | E40: =SUM(E14:E39) -> 0

Sheet Parc Maior Relev
B3: UNIDADE ESCOLAR | E3: CÓDIGO INEP
B4: =Orçamento!$O$4 -> CENTRO DE ENSINO EM PERÍODO INTEGRAL PROFESSOR JOAQUIM CARVALHO FERREIRA | E4: =Orçamento!$V$4 -> 52033589
B6: OBRA | E6: CIDADE
B7: =Orçamento!$O$7 -> REFORMA E AMPLIAÇÃO | E7: =Orçamento!$V$7 -> GOIÂNIA
B9: CRE | E9: ÁREA TOTAL CONSTRUÍDA (M²)
B10: =Orçamento!$O$10 -> GOIÂNIA | E10: =Orçamento!$V$13 -> 2969.63
A11: FILTRO
B12: PARCELA DE MAIOR RELEVÂNCIA
B13: CÓDIGO | C13: SERVIÇO | D13: DESCRIÇÃO | E13: UNID | F13: QUANT | G13: PARC. MAIOR RELEV (100%)
B14: f. | C14: INSTALAÇÕES ELÉTRICAS | D14: SUBESTAÇÃO | E14: KVA | F14: 112.5 | G14: =F14 -> 112.5
B15: CÓDIGO | C15: SERVIÇO | D15: DESCRIÇÃO | E15: UNID | F15: QUANT | G15: PARC. MAIOR RELEV (50%)
B16: u. | C16: REVESTIMENTO DE PISO | D16: PISO EM GRANITINA | E16: M2 | F16: 779.4103 | G16: =F16*0.5 -> 389.70515
B17: s. | C17: REVESTIMENTO DE PAREDE | D17: REVESTIMENTO CERÂMICO DE PAREDE | E17: M2 | F17: 411.265 | G17: =F17*0.5 -> 205.6325
A18: F
A19: F | B19: (*) Para os fins do inciso I dp § 1º do Art. 30 da Lei Federal 8.666/93, são consideradas parcelas de maior relevância técnica as execuções apresentadas
A20: F

Sheet Composições
A4: UNIDADE ESCOLAR | H4: CÓDIGO INEP
A5: =Orçamento!$O$4 -> CENTRO DE ENSINO EM PERÍODO INTEGRAL PROFESSOR JOAQUIM CARVALHO FERREIRA | H5: =Orçamento!$V$4 -> 52033589
A7: OBRA | H7: CIDADE
A8: =Orçamento!$O$7 -> REFORMA E AMPLIAÇÃO | H8: =Orçamento!$V$7 -> GOIÂNIA
A10: CRE | D10: ENDEREÇO | H10: REFERÊNCIA AGETOP
A11: =Orçamento!$O$10 -> GOIÂNIA | D11: =Orçamento!$R$10 -> AV FERNÃO DIAS PAES LEME S/Nº 32, CAPUAVA, CEP:74450-200 | H11: =Orçamento!$S$10 -> ABR/19 | I11: =Orçamento!$T$10 -> DESONERADA
A13: DATA | D13: ÁREA TOTAL CONSTRUÍDA (M²) | H13: REFERÊNCIA SINAPI
A14: =Orçamento!$S$7 -> 2020-03-25 | D14: =Orçamento!$V$13 -> 2969.63 | H14: =Orçamento!$V$10 -> OUT/19 | I14: =Orçamento!$W$10 -> DESONERADA
A16: COMPOSIÇÕES DE CUSTOS UNITÁRIOS - SEE-GO
A17: 46 | B17: FONTE | C17: CÓDIGO | D17: DESCRIÇÃO | E17: UNIDADE | F17: COEFIC. | G17: CUSTO UNITÁRIO | I17: CUSTO TOTAL (A) + (B) + (C) + (D) + (E)
G18: DESONERADO | H18: NÃO DESONER. | I18: DESONERADO | J18: NÃO DESONER.
B19: COMPOSIÇÃO | C19: COMP 046_SEE | D19: CAPUZ PARA PROTEÇÃO DOS PARA RAIOS | E19: UN | I19: 16.1 | J19: 16.15
B20: AGETOP_I | C20: 8 | D20: AJUDANTE | E20: h | F20: 0.0333 | G20: 8.75 | H20: 10.14 | I20: 0.29 | J20: 0.34
B21: AGETOP_I | C21: 12 | D21: MATERIAL HIDRO-SANITÁRIO | E21: 0 | F21: 0.0333 | G21: 0 | H21: 0 | I21: 0 | J21: 0
B22: MÃO DE OBRA (B) - TOTAL | I22: 0.29 | J22: 0.34
B23: COTAÇÃO | C23: COT 010_SEE | D23: CAPUZ PARA PROTEÇÃO DOS PARA RAIOS | E23: UN | F23: 1 | G23: 15.81 | H23: 15.81 | I23: 15.81 | J23: 15.81
B24: MATERIAL (C) - TOTAL | I24: 15.81 | J24: 15.81
A26: 47 | B26: FONTE | C26: CÓDIGO | D26: DESCRIÇÃO | E26: UNIDADE | F26: COEFIC. | G26: CUSTO UNITÁRIO | I26: CUSTO TOTAL (A) + (B) + (C) + (D) + (E)
G27: DESONERADO | H27: NÃO DESONER. | I27: DESONERADO | J27: NÃO DESONER.
B28: COMPOSIÇÃO | C28: COMP 047_SEE | D28: CAPUZ DE PROTEÇÃO PARA BUCHA DE TRANSFORMADOR | E28: UN | I28: 16.1 | J28: 16.15
B29: AGETOP_I | C29: 8 | D29: AJUDANTE | E29: h | F29: 0.0333 | G29: 8.75 | H29: 10.14 | I29: 0.29 | J29: 0.34
B30: AGETOP_I | C30: 12 | D30: MATERIAL HIDRO-SANITÁRIO | E30: 0 | F30: 0.0333 | G30: 0 | H30: 0 | I30: 0 | J30: 0
B31: MÃO DE OBRA (B) - TOTAL | I31: 0.29 | J31: 0.34
B32: COTAÇÃO | C32: COT 011_SEE | D32: CAPUZ DE PROTEÇÃO PARA BUCHA DE TRANSFORMADOR | E32: UN | F32: 1 | G32: 15.81 | H32: 15.81 | I32: 15.81 | J32: 15.81
B33: MATERIAL (C) - TOTAL | I33: 15.81 | J33: 15.81
A35: 48 | B35: FONTE | C35: CÓDIGO | D35: DESCRIÇÃO | E35: UNIDADE | F35: COEFIC. | G35: CUSTO UNITÁRIO | I35: CUSTO TOTAL (A) + (B) + (C) + (D) + (E)
G36: DESONERADO | H36: NÃO DESONER. | I36: DESONERADO | J36: NÃO DESONER.
B37: COMPOSIÇÃO | C37: COMP 048_SEE | D37: HASTE ROSQUEADA "TIRANTE" 3/8" | E37: M | I37: 8.88 | J37: 9.44
B38: AGETOP_I | C38: 8 | D38: AJUDANTE | E38: h | F38: 0.4 | G38: 8.75 | H38: 10.14 | I38: 3.5 | J38: 4.06
B39: AGETOP_I | C39: 12 | D39: MATERIAL HIDRO-SANITÁRIO | E39: 0 | F39: 0.4 | G39: 0 | H39: 0 | I39: 0 | J39: 0
B40: MÃO DE OBRA (B) - TOTAL | I40: 3.5 | J40: 4.06
B41: COTAÇÃO | C41: COT 012_SEE | D41: HASTE ROSQUEADA "TIRANTE" 3/8" | E41: M | F41: 1 | G41: 5.383333333 | H41: 5.383333333 | I41: 5.38 | J41: 5.38
B42: MATERIAL (C) - TOTAL | I42: 5.38 | J42: 5.38
A44: 49 | B44: FONTE | C44: CÓDIGO | D44: DESCRIÇÃO | E44: UNIDADE | F44: COEFIC. | G44: CUSTO UNITÁRIO | I44: CUSTO TOTAL (A) + (B) + (C) + (D) + (E)
G45: DESONERADO | H45: NÃO DESONER. | I45: DESONERADO | J45: NÃO DESONER.
B46: COMPOSIÇÃO | C46: COMP 049_SEE | D46: PORCA SEXTAVADA 3/8" | E46: UN | I46: 0.21 | J46: 0.22
B47: AGETOP_I | C47: 8 | D47: AJUDANTE | E47: h | F47: 0.009 | G47: 8.75 | H47: 10.14 | I47: 0.08 | J47: 0.09
B48: MÃO DE OBRA (B) - TOTAL | I48: 0.08 | J48: 0.09
B49: COTAÇÃO | C49: COT 013_SEE | D49: PORCA SEXTAVADA 3/8" | E49: UN | F49: 1 | G49: 0.13 | H49: 0.13 | I49: 0.13 | J49: 0.13
B50: MATERIAL (C) - TOTAL | I50: 0.13 | J50: 0.13
A52: 382 | B52: FONTE | C52: CÓDIGO | D52: DESCRIÇÃO | E52: UNIDADE | F52: COEFIC. | G52: CUSTO UNITÁRIO | I52: CUSTO TOTAL (A) + (B) + (C) + (D) + (E)
G53: DESONERADO | H53: NÃO DESONER. | I53: DESONERADO | J53: NÃO DESONER.
B54: COMPOSIÇÃO | C54: COMP 382_SEE | D54: TE DE REDUCAO DE FERRO GALVANIZADO, COM ROSCA BSP, DE 3/4" X 1/2" | E54: UN | I54: 14.08 | J54: 14.91
B55: AGETOP_I | C55: 8 | D55: AJUDANTE | E55: h | F55: 0.6 | G55: 8.75 | H55: 10.14 | I55: 5.25 | J55: 6.08
B56: AGETOP_I | C56: 11 | D56: MATERIAL ELÉTRICO | E56: 0 | F56: 0.6105 | G56: 0 | H56: 0 | I56: 0 | J56: 0
B57: MÃO DE OBRA (B) - TOTAL | I57: 5.25 | J57: 6.08
B58: SINAPI_I | C58: 3146 | D58: FITA VEDA ROSCA EM ROLOS DE 18 MM X 10 M (L X C) | E58: UN | F58: 0.120754717 | G58: 3.93 | H58: 3.93 | I58: 0.47 | J58: 0.47
B59: SINAPI_I | C59: 6302 | D59: TE DE REDUCAO DE FERRO GALVANIZADO, COM ROSCA BSP, DE 3/4" X 1/2" | E59: UN | F59: 1 | G59: 8.36 | H59: 8.36 | I59: 8.36 | J59: 8.36
B60: MATERIAL (C) - TOTAL | I60: 8.83 | J60: 8.83
A62: 383 | B62: FONTE | C62: CÓDIGO | D62: DESCRIÇÃO | E62: UNIDADE | F62: COEFIC. | G62: CUSTO UNITÁRIO | I62: CUSTO TOTAL (A) + (B) + (C) + (D) + (E)
G63: DESONERADO | H63: NÃO DESONER. | I63: DESONERADO | J63: NÃO DESONER.
B64: COMPOSIÇÃO | C64: COMP 383_SEE | D64: BUCHA DE REDUCAO DE FERRO GALVANIZADO, COM ROSCA BSP, DE 1/2" X 1/4" | E64: UN | I64: 4.48 | J64: 4.7
B65: AGETOP_I | C65: 8 | D65: AJUDANTE | E65: h | F65: 0.16 | G65: 8.75 | H65: 10.14 | I65: 1.4 | J65: 1.62
B66: AGETOP_I | C66: 11 | D66: MATERIAL ELÉTRICO | E66: 0 | F66: 0.16 | G66: 0 | H66: 0 | I66: 0 | J66: 0
B67: MÃO DE OBRA (B) - TOTAL | I67: 1.4 | J67: 1.62
B68: AGETOP_I | C68: H689 | F68: 1.2 | G68: 0 | H68: 0 | I68: 0 | J68: 0
B69: SINAPI_I | C69: 770 | D69: BUCHA DE REDUCAO DE FERRO GALVANIZADO, COM ROSCA BSP, DE 1/2" X 1/4" | E69: UN | F69: 1 | G69: 3.08 | H69: 3.08 | I69: 3.08 | J69: 3.08
B70: MATERIAL (C) - TOTAL | I70: 3.08 | J70: 3.08
A72: 212 | B72: FONTE | C72: CÓDIGO | D72: DESCRIÇÃO | E72: UNIDADE | F72: COEFIC. | G72: CUSTO UNITÁRIO | I72: CUSTO TOTAL (A) + (B) + (C) + (D) + (E)
G73: DESONERADO | H73: NÃO DESONER. | I73: DESONERADO | J73: NÃO DESONER.
B74: COMPOSIÇÃO | C74: COMP 212_SEE | D74: NIPLE DE REDUÇÃO 1/2" X 1/4" BSP | E74: UN | I74: 7.45 | J74: 7.67
B75: AGETOP_I | C75: 8 | D75: AJUDANTE | E75: h | F75: 0.16 | G75: 8.75 | H75: 10.14 | I75: 1.4 | J75: 1.62
B76: AGETOP_I | C76: 11 | D76: MATERIAL ELÉTRICO | E76: 0 | F76: 0.16 | G76: 0 | H76: 0 | I76: 0 | J76: 0
B77: MÃO DE OBRA (B) - TOTAL | I77: 1.4 | J77: 1.62
B78: COTAÇÃO | C78: COT 103_SEE | D78: NIPLE DE REDUÇÃO 1/2" X 1/4" BSP | E78: UN | F78: 1 | G78: 6.053333333 | H78: 6.053333333 | I78: 6.05 | J78: 6.05
B79: MATERIAL (C) - TOTAL | I79: 6.05 | J79: 6.05
A81: 213 | B81: FONTE | C81: CÓDIGO | D81: DESCRIÇÃO | E81: UNIDADE | F81: COEFIC. | G81: CUSTO UNITÁRIO | I81: CUSTO TOTAL (A) + (B) + (C) + (D) + (E)
G82: DESONERADO | H82: NÃO DESONER. | I82: DESONERADO | J82: NÃO DESONER.
B83: COMPOSIÇÃO | C83: COMP 213_SEE | D83: NIPLE DE REDUÇÃO 3/4" X 1/2" BSP | E83: UN | I83: 11.11 | J83: 11.33
B84: AGETOP_I | C84: 8 | D84: AJUDANTE | E84: h | F84: 0.16 | G84: 8.75 | H84: 10.14 | I84: 1.4 | J84: 1.62
B85: AGETOP_I | C85: 11 | D85: MATERIAL ELÉTRICO | E85: 0 | F85: 0.16 | G85: 0 | H85: 0 | I85: 0 | J85: 0
B86: MÃO DE OBRA (B) - TOTAL | I86: 1.4 | J86: 1.62
B87: COTAÇÃO | C87: COT 104_SEE | D87: NIPLE DE REDUÇÃO 3/4" X 1/2" BSP | E87: UN | F87: 1 | G87: 9.71 | H87: 9.71 | I87: 9.71 | J87: 9.71
B88: MATERIAL (C) - TOTAL | I88: 9.71 | J88: 9.71
A90: 237 | B90: FONTE | C90: CÓDIGO | D90: DESCRIÇÃO | E90: UNIDADE | F90: COEFIC. | G90: CUSTO UNITÁRIO | I90: CUSTO TOTAL (A) + (B) + (C) + (D) + (E)
G91: DESONERADO | H91: NÃO DESONER. | I91: DESONERADO | J91: NÃO DESONER.
B92: COMPOSIÇÃO | C92: COMP 237_SEE | D92: FITA ANTICORROSIVA | E92: M | I92: 9.4 | J92: 9.68
B93: AGETOP_I | C93: 8 | D93: AJUDANTE | E93: h | F93: 0.2 | G93: 8.75 | H93: 10.14 | I93: 1.75 | J93: 2.03
B94: AGETOP_I | C94: 12 | D94: MATERIAL HIDRO-SANITÁRIO | E94: 0 | F94: 0.2 | G94: 0 | H94: 0 | I94: 0 | J94: 0
B95: MÃO DE OBRA (B) - TOTAL | I95: 1.75 | J95: 2.03
B96: SINAPI_I | C96: 39634 | D96: FITA ADESIVA ANTICORROSIVA DE PVC FLEXIVEL, COR PRETA, PARA PROTECAO TUBULACAO, 50 MM X 30 M (L X C), E= *0,25* MM | E96: M | F96: 1 | G96: 7.65 | H96: 7.65 | I96: 7.65 | J96: 7.65
B97: MATERIAL (C) - TOTAL | I97: 7.65 | J97: 7.65
A99: 542 | B99: FONTE | C99: CÓDIGO | D99: DESCRIÇÃO | E99: UNIDADE | F99: COEFIC. | G99: CUSTO UNITÁRIO | I99: CUSTO TOTAL (A) + (B) + (C) + (D) + (E)
G100: DESONERADO | H100: NÃO DESONER. | I100: DESONERADO | J100: NÃO DESONER.
B101: COMPOSIÇÃO | C101: COMP 542_SEE | D101: VÁLVULA UGV 3/4" (S) LATÃO | E101: UN | I101: 19.62 | J101: 20.22
B102: AGETOP_I | C102: 8 | D102: AJUDANTE | E102: h | F102: 0.432 | G102: 8.75 | H102: 10.14 | I102: 3.78 | J102: 4.38
B103: AGETOP_I | C103: 11 | D103: MATERIAL ELÉTRICO | E103: 0 | F103: 0.432 | G103: 0 | H103: 0 | I103: 0 | J103: 0
B104: MÃO DE OBRA (B) - TOTAL | I104: 3.78 | J104: 4.38
B105: COTAÇÃO | C105: COT 281_SEE | D105: VÁLVULA UGV 3/4" (S) LATÃO | E105: UN | F105: 1 | G105: 15.83666667 | H105: 15.83666667 | I105: 15.84 | J105: 15.84
B106: MATERIAL (C) - TOTAL | I106: 15.84 | J106: 15.84
A108: 543 | B108: FONTE | C108: CÓDIGO | D108: DESCRIÇÃO | E108: UNIDADE | F108: COEFIC. | G108: CUSTO UNITÁRIO | I108: CUSTO TOTAL (A) + (B) + (C) + (D) + (E)
G109: DESONERADO | H109: NÃO DESONER. | I109: DESONERADO | J109: NÃO DESONER.
B110: COMPOSIÇÃO | C110: COMP 543_SEE | D110: VÁLVULA UGV 1/2" (S) LATÃO | E110: UN | I110: 18.95 | J110: 19.55
B111: AGETOP_I | C111: 8 | D111: AJUDANTE | E111: h | F111: 0.432 | G111: 8.75 | H111: 10.14 | I111: 3.78 | J111: 4.38
B112: AGETOP_I | C112: 11 | D112: MATERIAL ELÉTRICO | E112: 0 | F112: 0.432 | G112: 0 | H112: 0 | I112: 0 | J112: 0
B113: MÃO DE OBRA (B) - TOTAL | I113: 3.78 | J113: 4.38
B114: COTAÇÃO | C114: COT 282_SEE | D114: VÁLVULA UGV 1/2" (S) LATÃO | E114: UN | F114: 1 | G114: 15.16666667 | H114: 15.16666667 | I114: 15.17 | J114: 15.17
B115: MATERIAL (C) - TOTAL | I115: 15.17 | J115: 15.17
A117: 211 | B117: FONTE | C117: CÓDIGO | D117: DESCRIÇÃO | E117: UNIDADE | F117: COEFIC. | G117: CUSTO UNITÁRIO | I117: CUSTO TOTAL (A) + (B) + (C) + (D) + (E)
G118: DESONERADO | H118: NÃO DESONER. | I118: DESONERADO | J118: NÃO DESONER.
B119: COMPOSIÇÃO | C119: COMP 211_SEE | D119: REGULADOR DE 2º ESTÁGIO 5KG/H | E119: UN | I119: 69.89 | J119: 71.49
B120: AGETOP_I | C120: 8 | D120: AJUDANTE | E120: h | F120: 1.15 | G120: 8.75 | H120: 10.14 | I120: 10.06 | J120: 11.66
B121: AGETOP_I | C121: 11 | D121: MATERIAL ELÉTRICO | E121: 0 | F121: 1.15 | G121: 0 | H121: 0 | I121: 0 | J121: 0
B122: MÃO DE OBRA (B) - TOTAL | I122: 10.06 | J122: 11.66
B123: COTAÇÃO | C123: COT 102_SEE | D123: REGULADOR DE 2º ESTÁGIO 5KG/H | E123: UN | F123: 1 | G123: 59.83333333 | H123: 59.83333333 | I123: 59.83 | J123: 59.83
B124: AGETOP_I | C124: H689 | F124: 2.82 | G124: 0 | H124: 0 | I124: 0 | J124: 0
B125: MATERIAL (C) - TOTAL | I125: 59.83 | J125: 59.83
A127: 210 | B127: FONTE | C127: CÓDIGO | D127: DESCRIÇÃO | E127: UNIDADE | F127: COEFIC. | G127: CUSTO UNITÁRIO | I127: CUSTO TOTAL (A) + (B) + (C) + (D) + (E)
G128: DESONERADO | H128: NÃO DESONER. | I128: DESONERADO | J128: NÃO DESONER.
B129: COMPOSIÇÃO | C129: COMP 210_SEE | D129: REGULADOR DE 1º ESTÁGIO 60KG/H MODELO AP-40 COM MANÔMETRO | E129: UN | I129: 215.64 | J129: 217.24
B130: AGETOP_I | C130: 8 | D130: AJUDANTE | E130: h | F130: 1.15 | G130: 8.75 | H130: 10.14 | I130: 10.06 | J130: 11.66
B131: AGETOP_I | C131: 11 | D131: MATERIAL ELÉTRICO | E131: 0 | F131: 1.15 | G131: 0 | H131: 0 | I131: 0 | J131: 0
B132: MÃO DE OBRA (B) - TOTAL | I132: 10.06 | J132: 11.66
B133: COTAÇÃO | C133: COT 101_SEE | D133: REGULADOR DE 1º ESTÁGIO 60KG/H MODELO AP-40 COM MANÔMETRO | E133: UN | F133: 1 | G133: 205.5766667 | H133: 205.5766667 | I133: 205.58 | J133: 205.58
B134: AGETOP_I | C134: H689 | F134: 2.82 | G134: 0 | H134: 0 | I134: 0 | J134: 0
B135: MATERIAL (C) - TOTAL | I135: 205.58 | J135: 205.58
A137: 235 | B137: FONTE | C137: CÓDIGO | D137: DESCRIÇÃO | E137: UNIDADE | F137: COEFIC. | G137: CUSTO UNITÁRIO | I137: CUSTO TOTAL (A) + (B) + (C) + (D) + (E)
G138: DESONERADO | H138: NÃO DESONER. | I138: DESONERADO | J138: NÃO DESONER.
B139: COMPOSIÇÃO | C139: COMP 235_SEE | D139: PLACA DE SINALIZAÇÃO EM PVC COD 01 - (300X300) PROIBIDO FUMAR | E139: UN | I139: 25.32 | J139: 25.44
B140: AGETOP_I | C140: 5 | D140: SERVENTE | E140: h | F140: 0.09 | G140: 8.75 | H140: 10.14 | I140: 0.79 | J140: 0.91
B141: MÃO DE OBRA (B) - TOTAL | I141: 0.79 | J141: 0.91
B142: AGETOP_I | C142: 3070 | D142: BUCHA DE NYLON S-6 | E142: un | F142: 2 | G142: 0.04 | H142: 0.04 | I142: 0.08 | J142: 0.08
B143: AGETOP_I | C143: 3393 | D143: PARAFUSO P/BUCHA S-6 | E143: un | F143: 2 | G143: 0.08 | H143: 0.08 | I143: 0.16 | J143: 0.16
B144: SINAPI_I | C144: 37556 | D144: PLACA DE SINALIZACAO DE SEGURANCA CONTRA INCENDIO, FOTOLUMINESCENTE, QUADRADA, *20 X 20* CM, EM PVC *2* MM ANTI-CHAMAS (SIMBOLOS, CORES E PICTOGRAMAS CONFORME NBR 13434) | E144: UN | F144: 1 | G144: 24.29 | H144: 24.29 | I144: 24.29 | J144: 24.29
B145: MATERIAL (C) - TOTAL | I145: 24.53 | J145: 24.53
A147: 236 | B147: FONTE | C147: CÓDIGO | D147: DESCRIÇÃO | E147: UNIDADE | F147: COEFIC. | G147: CUSTO UNITÁRIO | I147: CUSTO TOTAL (A) + (B) + (C) + (D) + (E)
G148: DESONERADO | H148: NÃO DESONER. | I148: DESONERADO | J148: NÃO DESONER.
B149: COMPOSIÇÃO | C149: COMP 236_SEE | D149: PLACA DE SINALIZAÇÃO EM PVC COD 06 - (300X300) PERIGO INFLAMÁVEL | E149: UN | I149: 25.32 | J149: 25.44
B150: AGETOP_I | C150: 5 | D150: SERVENTE | E150: h | F150: 0.09 | G150: 8.75 | H150: 10.14 | I150: 0.79 | J150: 0.91
B151: MÃO DE OBRA (B) - TOTAL | I151: 0.79 | J151: 0.91
B152: AGETOP_I | C152: 3070 | D152: BUCHA DE NYLON S-6 | E152: un | F152: 2 | G152: 0.04 | H152: 0.04 | I152: 0.08 | J152: 0.08
B153: AGETOP_I | C153: 3393 | D153: PARAFUSO P/BUCHA S-6 | E153: un | F153: 2 | G153: 0.08 | H153: 0.08 | I153: 0.16 | J153: 0.16
B154: SINAPI_I | C154: 37556 | D154: PLACA DE SINALIZACAO DE SEGURANCA CONTRA INCENDIO, FOTOLUMINESCENTE, QUADRADA, *20 X 20* CM, EM PVC *2* MM ANTI-CHAMAS (SIMBOLOS, CORES E PICTOGRAMAS CONFORME NBR 13434) | E154: UN | F154: 1 | G154: 24.29 | H154: 24.29 | I154: 24.29 | J154: 24.29
B155: MATERIAL (C) - TOTAL | I155: 24.53 | J155: 24.53
A157: 45 | B157: FONTE | C157: CÓDIGO | D157: DESCRIÇÃO | E157: UNIDADE | F157: COEFIC. | G157: CUSTO UNITÁRIO | I157: CUSTO TOTAL (A) + (B) + (C) + (D) + (E)
G158: DESONERADO | H158: NÃO DESONER. | I158: DESONERADO | J158: NÃO DESONER.
B159: COMPOSIÇÃO | C159: COMP 045_SEE | D159: LAUDO DE ESTANQUEIDADE | E159: UN | I159: 936 | J159: 1085.12
B160: AGETOP | C160: 250101 | D160: ENGENHEIRO - (OBRAS CIVIS) | E160: H | F160: 16 | G160: 58.5 | H160: 67.82 | I160: 936 | J160: 1085.12
B161: MÃO DE OBRA (B) - TOTAL | I161: 936 | J161: 1085.12
B162: MATERIAL (C) - TOTAL | I162: 0 | J162: 0
A164: 17 | B164: FONTE | C164: CÓDIGO | D164: DESCRIÇÃO | E164: UNIDADE | F164: COEFIC. | G164: CUSTO UNITÁRIO | I164: CUSTO TOTAL (A) + (B) + (C) + (D) + (E)
G165: DESONERADO | H165: NÃO DESONER. | I165: DESONERADO | J165: NÃO DESONER.
B166: COMPOSIÇÃO | C166: COMP 017_SEE | D166: REDUCAO GIRATÓRIA TIPO STORZ LATAO P/ INST. PREDIAL COMBATE A INCENDIO ENGATE RAPIDO 2.1/2" X 1.1/2" | E166: UN | G166: - | H166: - | I166: 97.09 | J166: 97.31
B167: AGETOP_I | C167: 8 | D167: AJUDANTE | E167: h | F167: 0.16 | G167: 8.75 | H167: 10.14 | I167: 1.4 | J167: 1.62
B168: AGETOP_I | C168: 11 | D168: MATERIAL ELÉTRICO | E168: 0 | F168: 0.16 | G168: 0 | H168: 0 | I168: 0 | J168: 0
B169: MÃO DE OBRA (B) - TOTAL | I169: 1.4 | J169: 1.62
B170: SINAPI_I | C170: 20972 | D170: REDUCAO FIXA TIPO STORZ, ENGATE RAPIDO 2.1/2" X 1.1/2", EM LATAO, PARA INSTALACAO PREDIAL COMBATE A INCENDIO PREDIAL | E170: UN | F170: 1 | G170: 95.69 | H170: 95.69 | I170: 95.69 | J170: 95.69
B171: MATERIAL (C) - TOTAL | I171: 95.69 | J171: 95.69
A173: 18 | B173: FONTE | C173: CÓDIGO | D173: DESCRIÇÃO | E173: UNIDADE | F173: COEFIC. | G173: CUSTO UNITÁRIO | I173: CUSTO TOTAL (A) + (B) + (C) + (D) + (E)
G174: DESONERADO | H174: NÃO DESONER. | I174: DESONERADO | J174: NÃO DESONER.
B175: COMPOSIÇÃO | C175: COMP 018_SEE | D175: CHAVE DUPLA P/ CONEXÕES TIPO STORZ EM LATÃO ENGATE RÁPIDO 1 1/2" X 2 1/2" | E175: UN | G175: - | H175: - | I175: 12.75 | J175: 12.75
B176: AGETOP_I | C176: 11 | D176: MATERIAL ELÉTRICO | E176: 0 | F176: 0.15 | G176: 0 | H176: 0 | I176: 0 | J176: 0
B177: MÃO DE OBRA (B) - TOTAL | I177: 0 | J177: 0
B178: SINAPI_I | C178: 20971 | D178: CHAVE DUPLA PARA CONEXOES TIPO STORZ, ENGATE RAPIDO 1 1/2" X 2 1/2", EM LATAO, PARA INSTALACAO PREDIAL COMBATE A INCENDIO | E178: UN | F178: 1 | G178: 12.75 | H178: 12.75 | I178: 12.75 | J178: 12.75
B179: MATERIAL (C) - TOTAL | I179: 12.75 | J179: 12.75
A181: 87 | B181: FONTE | C181: CÓDIGO | D181: DESCRIÇÃO | E181: UNIDADE | F181: COEFIC. | G181: CUSTO UNITÁRIO | I181: CUSTO TOTAL (A) + (B) + (C) + (D) + (E)
G182: DESONERADO | H182: NÃO DESONER. | I182: DESONERADO | J182: NÃO DESONER.
B183: COMPOSIÇÃO | C183: COMP 087_SEE | D183: REGISTRO DE GAVETA COM HASTE ASCENDENTE DE BRONZE 2 1/2" | E183: UN | I183: 241.73 | J183: 243.33
B184: AGETOP_I | C184: 8 | D184: AJUDANTE | E184: h | F184: 1.15 | G184: 8.75 | H184: 10.14 | I184: 10.06 | J184: 11.66
B185: AGETOP_I | C185: 11 | D185: MATERIAL ELÉTRICO | E185: 0 | F185: 1.15 | G185: 0 | H185: 0 | I185: 0 | J185: 0
B186: MÃO DE OBRA (B) - TOTAL | I186: 10.06 | J186: 11.66
B187: AGETOP_I | C187: H689 | F187: 2.82 | G187: 0 | H187: 0 | I187: 0 | J187: 0
B188: COTAÇÃO | C188: COT 017_SEE | D188: REGISTRO DE GAVETA COM HASTE ASCENDENTE DE BRONZE 2 1/2" | E188: UN | F188: 1 | G188: 231.6666667 | H188: 231.6666667 | I188: 231.67 | J188: 231.67
B189: MATERIAL (C) - TOTAL | I189: 231.67 | J189: 231.67
A191: 30 | B191: FONTE | C191: CÓDIGO | D191: DESCRIÇÃO | E191: UNIDADE | F191: COEFIC. | G191: CUSTO UNITÁRIO | I191: CUSTO TOTAL (A) + (B) + (C) + (D) + (E)
G192: DESONERADO | H192: NÃO DESONER. | I192: DESONERADO | J192: NÃO DESONER.
B193: COMPOSIÇÃO | C193: COMP 030_SEE | D193: COTOVELO DE FERRO GALV. 90° X 2 1/2" | E193: UN | I193: 56.78 | J193: 58.06
B194: AGETOP_I | C194: 8 | D194: AJUDANTE | E194: h | F194: 0.92 | G194: 8.75 | H194: 10.14 | I194: 8.05 | J194: 9.33
B195: AGETOP_I | C195: 11 | D195: MATERIAL ELÉTRICO | E195: 0 | F195: 0.92 | G195: 0 | H195: 0 | I195: 0 | J195: 0
B196: MÃO DE OBRA (B) - TOTAL | I196: 8.05 | J196: 9.33
B197: SINAPI_I | C197: 3470 | D197: COTOVELO 90 GRAUS DE FERRO GALVANIZADO, COM ROSCA BSP, DE 2 1/2" | E197: UN | F197: 1 | G197: 48.73 | H197: 48.73 | I197: 48.73 | J197: 48.73
B198: AGETOP_I | C198: H689 | F198: 2 | G198: 0 | H198: 0 | I198: 0 | J198: 0
B199: MATERIAL (C) - TOTAL | I199: 48.73 | J199: 48.73
A201: 77 | B201: FONTE | C201: CÓDIGO | D201: DESCRIÇÃO | E201: UNIDADE | F201: COEFIC. | G201: CUSTO UNITÁRIO | I201: CUSTO TOTAL (A) + (B) + (C) + (D) + (E)
G202: DESONERADO | H202: NÃO DESONER. | I202: DESONERADO | J202: NÃO DESONER.
B203: COMPOSIÇÃO | C203: COMP 077_SEE | D203: UNIAO FERRO GALV C/ASSENTO CONICO BRONZE 2 1/2" | E203: UN | I203: 142.49 | J203: 143.05
B204: AGETOP_I | C204: 8 | D204: AJUDANTE | E204: h | F204: 0.4 | G204: 8.75 | H204: 10.14 | I204: 3.5 | J204: 4.06
B205: AGETOP_I | C205: 11 | D205: MATERIAL ELÉTRICO | E205: 0 | F205: 0.4 | G205: 0 | H205: 0 | I205: 0 | J205: 0
B206: MÃO DE OBRA (B) - TOTAL | I206: 3.5 | J206: 4.06
B207: AGETOP_I | C207: H689 | F207: 2.4 | G207: 0 | H207: 0 | I207: 0 | J207: 0
B208: SINAPI_I | C208: 12427 | D208: UNIAO COM ASSENTO CONICO DE BRONZE, DIAMETRO 2 1/2" | E208: UN | F208: 1 | G208: 138.99 | H208: 138.99 | I208: 138.99 | J208: 138.99
B209: MATERIAL (C) - TOTAL | I209: 138.99 | J209: 138.99
A211: 76 | B211: FONTE | C211: CÓDIGO | D211: DESCRIÇÃO | E211: UNIDADE | F211: COEFIC. | G211: CUSTO UNITÁRIO | I211: CUSTO TOTAL (A) + (B) + (C) + (D) + (E)
G212: DESONERADO | H212: NÃO DESONER. | I212: DESONERADO | J212: NÃO DESONER.
B213: COMPOSIÇÃO | C213: COMP 076_SEE | D213: CURVA FERRO GALVANIZADO 45G ROSCA MACHO/FEMEA REF. 2 1/2" | E213: UN | I213: 104.91 | J213: 106.19
B214: AGETOP_I | C214: 8 | D214: AJUDANTE | E214: h | F214: 0.92 | G214: 8.75 | H214: 10.14 | I214: 8.05 | J214: 9.33
B215: AGETOP_I | C215: 11 | D215: MATERIAL ELÉTRICO | E215: 0 | F215: 0.92 | G215: 0 | H215: 0 | I215: 0 | J215: 0
B216: MÃO DE OBRA (B) - TOTAL | I216: 8.05 | J216: 9.33
B217: SINAPI_I | C217: 3148 | D217: FITA VEDA ROSCA EM ROLOS DE 18 MM X 50 M (L X C) | E217: UN | F217: 0.0491 | G217: 14.49 | H217: 14.49 | I217: 0.71 | J217: 0.71
B218: SINAPI_I | C218: 1784 | D218: CURVA 45 GRAUS DE FERRO GALVANIZADO, COM ROSCA BSP MACHO/FEMEA, DE 2 1/2" | E218: UN | F218: 1 | G218: 96.15 | H218: 96.15 | I218: 96.15 | J218: 96.15
B219: MATERIAL (C) - TOTAL | I219: 96.86 | J219: 96.86
A221: 22 | B221: FONTE | C221: CÓDIGO | D221: DESCRIÇÃO | E221: UNIDADE | F221: COEFIC. | G221: CUSTO UNITÁRIO | I221: CUSTO TOTAL (A) + (B) + (C) + (D) + (E)
G222: DESONERADO | H222: NÃO DESONER. | I222: DESONERADO | J222: NÃO DESONER.
B223: COMPOSIÇÃO | C223: COMP 022_SEE | D223: TAMPÃO FOFO 40X50CM C/INSCRIÇÃO | E223: UN | G223: - | H223: - | I223: 197.82 | J223: 197.82
B224: AGETOP_I | C224: 11 | D224: MATERIAL ELÉTRICO | E224: 0 | F224: 0.15 | G224: 0 | H224: 0 | I224: 0 | J224: 0
B225: MÃO DE OBRA (B) - TOTAL | I225: 0 | J225: 0
B226: SINAPI_I | C226: 11293 | D226: TAMPAO FOFO SIMPLES COM BASE, CLASSE A15 CARGA MAX 1,5 T, 400 X 500 MM, COM INSCRICAO INCENDIO | E226: UN | F226: 1 | G226: 197.82 | H226: 197.82 | I226: 197.82 | J226: 197.82
B227: MATERIAL (C) - TOTAL | I227: 197.82 | J227: 197.82
A229: 24 | B229: FONTE | C229: CÓDIGO | D229: DESCRIÇÃO | E229: UNIDADE | F229: COEFIC. | G229: CUSTO UNITÁRIO | I229: CUSTO TOTAL (A) + (B) + (C) + (D) + (E)
G230: DESONERADO | H230: NÃO DESONER. | I230: DESONERADO | J230: NÃO DESONER.
... 150 more rows
